Workbook

Sheet Escalators
A1: IT Capex Expenditure Template | H1: Menu
A2: Escalators
B4: 2006 | C4: 2007 | D4: 2008 | E4: 2009 | F4: 2010 | G4: 2011 | H4: 2012 | I4: 2013 | J4: 2014 | K4: 2015 | L4: 2016 | M4: 2017 | N4: 2018 | O4: 2019 | P4: 2020
A6: INFLATION ESCALATION
A7: CPI | B7: 149.8 | C7: 155.7 | D7: 158.6 | E7: 166.5 | F7: 168.6 | G7: 173.3 | H7: 179.4 | I7: 182.9951904 | J7: 186.9498998 | K7: 193.7346069 | L7: 198.7717066 | M7: 203.939771 | N7: 209.2422051 | O7: 214.6825024 | P7: 220.2642474
H8: 99.8 | I8: 101.8 | J8: 104 | K8: 107.7743242 | L8: =K8*(1+L9) -> 110.5764566 | M8: 113.4514445 | N8: 116.4011821 | O8: 119.4276128 | P8: 122.5327307
A9: Inflation | C9: =C7/B7-1 -> 0.0393858478 | D9: 0.01862556198 | E9: 0.04981084489 | F9: 0.01261261261 | G9: 0.02787663108 | H9: 0.03519907675 | I9: =I8/H8-1 -> 0.02004008016 | J9: =J8/I8-1 -> 0.02161100196 | K9: 0.03629157899 | L9: 0.026 | M9: 0.026 | N9: 0.026 | O9: 0.026 | P9: 0.026
A10: Real cost year | B10: 2015
A11: ="Conversion from nominal to real $"&B10 -> Conversion from nominal to real $2015 | B11: =HLOOKUP($B$10,$B$4:$P$7,4)/B7 -> 1.29328843 | C11: =HLOOKUP($B$10,$B$4:$P$7,4)/C7 -> 1.244281354 | D11: 1.221529678 | E11: 1.163571212 | F11: 1.149078332 | G11: 1.117914639 | H11: 1.079903048 | I11: =HLOOKUP($B$10,$B$4:$P$8,5)/I8 -> 1.058686878 | J11: =HLOOKUP($B$10,$B$4:$P$8,5)/J8 -> 1.036291579 | K11: 1 | L11: 0.9746588694 | M11: 0.9499599117 | N11: 0.9258868535 | O11: 0.9024238338 | P11: 0.8795553936
A14: INPUT ESCALATION (Capex)
A16: Annual
A17: Labour | L17: 0.01873364327 | M17: 0.01684373406 | N17: 0.01684373406 | O17: 0.01684373406 | P17: 0.01684373406
A18: Materials | L18: 0 | M18: 0 | N18: 0 | O18: 0 | P18: 0
A19: Contracts | L19: 0.009649122807 | M19: 0.02153996101 | N19: 0.01734892788 | O19: 0.0171539961 | P19: 0.01744639376
A21: Cumulative capex
A22: Labour | L22: =(1+K22)*(1+L17)-1 -> 0.01873364327 | M22: 0.03589292183 | N22: 0.05334122672 | O22: 0.07108342621 | P22: 0.08912447059
A23: Materials | L23: 0 | M23: 0 | N23: 0 | O23: 0 | P23: 0
A24: Contracts | L24: 0.009649122807 | M24: 0.03139692555 | N24: 0.04929055642 | O24: 0.06729008254 | P24: 0.08591044557

Sheet Assumptions
A1: =Escalators!A1 -> IT Capex Expenditure Template | E1: Menu
A2: Assumptions
A4: LABOUR RATES
A6: Labour Rate Assumption 2016 - 2020
C8: PCN Mhr Rate ($/Mhr) | D8: 83
C9: CPN Mhr Rate ($/Mhr) | D9: 75
C10: NS Mhr Rate ($/Mhr) | D10: 90
C11: IT Internal Mhr Rate ($/Mhr) | D11: 90
C12: Corporate Mhr Rate ($/Mhr) | D12: 98
C13: CSG Mhr Rate ($/Mhr) | D13: 57

Sheet Export PAL
A1: =Escalators!A1 -> IT Capex Expenditure Template
A2: Export
A4: EXPORT
A6: POWERCOR | D6: 2011 | E6: 2012 | F6: 2013 | G6: 2014 | H6: 2015 | I6: 2016 | J6: 2017 | K6: 2018 | L6: 2019 | M6: 2020
D7: $'000 nom | E7: $'000 nom | F7: $'000 nom | G7: $'000 nom | H7: $'000, $2015 | I7: $'000, $2015 | J7: $'000, $2015 | K7: $'000, $2015 | L7: $'000, $2015 | M7: $'000, $2015
C8: Description | D8: Actual | E8: Actual | F8: F'cast | G8: F'cast | H8: F'cast | I8: F'cast | J8: F'cast | K8: F'cast | L8: F'cast | M8: F'cast
B9: 200 | C9: Computers | I9: =SUM(PAL!B35:D35) -> 40731.34552 | J9: =SUM(PAL!E35:G35) -> 40605.71067 | K9: =SUM(PAL!H35:J35) -> 36217.90394 | L9: =SUM(PAL!K35:M35) -> 30803.22762 | M9: =SUM(PAL!N35:P35) -> 21842.95309
B10: 205 | C10: IT Metering Data Services | I10: =SUM(PAL!B82:D82) -> 664.1939988 | J10: =SUM(PAL!E82:G82) -> 698.9231103 | K10: =SUM(PAL!H82:J82) -> 546.0579999 | L10: =SUM(PAL!K82:M82) -> 330.3978384 | M10: =SUM(PAL!N82:P82) -> 1795.665935
A12: POWERCOR - LABUOR, MATERIAL AND CONTRACT SPLIT | D12: 2011 | E12: 2012 | F12: 2013 | G12: 2014 | H12: 2015 | I12: 2016 | J12: 2017 | K12: 2018 | L12: 2019 | M12: 2020
D13: % | E13: % | F13: % | G13: % | H13: % | I13: % | J13: % | K13: % | L13: % | M13: %
C14: Description | D14: Actual | E14: Actual | F14: F'cast | G14: F'cast | H14: F'cast | I14: F'cast | J14: F'cast | K14: F'cast | L14: F'cast | M14: F'cast
B15: 200 | C15: Labour | I15: =PAL!D$35/$I$9 -> 0.1747236752 | J15: =PAL!G$35/$J$9 -> 0.1918038764 | K15: =PAL!J$35/$K$9 -> 0.1855331317 | L15: =PAL!M$35/$L$9 -> 0.2426431711 | M15: =PAL!P$35/$M$9 -> 0.2530005823
B16: 200 | C16: Material | I16: =PAL!B$35/$I$9 -> 0.3771997363 | J16: =PAL!E$35/$J$9 -> 0.3444422684 | K16: =PAL!H$35/$K$9 -> 0.4292787902 | L16: =PAL!K$35/$L$9 -> 0.2974439211 | M16: =PAL!N$35/$M$9 -> 0.2562759642
B17: 200 | C17: Contract | I17: =PAL!C$35/$I$9 -> 0.4480765885 | J17: =PAL!F$35/$J$9 -> 0.4637538552 | K17: =PAL!I$35/$K$9 -> 0.3851880781 | L17: =PAL!L$35/$L$9 -> 0.4599129078 | M17: =PAL!O$35/$M$9 -> 0.4907234536
B18: 205 | C18: Labour | I18: =PAL!D$82/$I$10 -> 0.2566794061 | J18: =PAL!G$82/$J$10 -> 0.1540877287 | K18: =PAL!J$82/$K$10 -> 0.2555991257 | L18: =PAL!M$82/$L$10 -> 0.2551075743 | M18: =PAL!P$82/$M$10 -> 0.1161323004
B19: 205 | C19: Material | I19: =PAL!B$82/$I$10 -> 0.1489985863 | J19: =PAL!E$82/$J$10 -> 0.3113219745 | K19: =PAL!H$82/$K$10 -> 0.09666313289 | L19: =PAL!K$82/$L$10 -> 0.09640561978 | M19: =PAL!N$82/$M$10 -> 0.4992844811
B20: 205 | C20: Contract | I20: =PAL!C$82/$I$10 -> 0.5943220076 | J20: =PAL!F$82/$J$10 -> 0.5345902967 | K20: =PAL!I$82/$K$10 -> 0.6477377414 | L20: =PAL!L$82/$L$10 -> 0.648486806 | M20: =PAL!O$82/$M$10 -> 0.3845832186

Sheet PAL
A1: =Escalators!A1 -> IT Capex Expenditure Template
A2: Powercor Summary
B4: 2016 | E4: 2017 | H4: 2018 | K4: 2019 | N4: 2020
A5: Forecast - No Escalation
A6: IT Category | B6: 2016 PAL SCS | E6: 2017 PAL SCS | H6: 2018 PAL SCS | K6: 2019 PAL SCS | N6: 2020 PAL SCS
B7: Material | C7: Contract | D7: Labour | E7: Material | F7: Contract | G7: Labour | H7: Material | I7: Contract | J7: Labour | K7: Material | L7: Contract | M7: Labour | N7: Material | O7: Contract | P7: Labour
A8: AMI | B8: 0 | C8: 0 | D8: 0 | E8: 0 | F8: 0 | G8: 0 | H8: 0 | I8: 0 | J8: 0 | K8: 0 | L8: 0 | M8: 0 | N8: 0 | O8: 0 | P8: 0
A9: Compliance | B9: 624.9935382 | C9: 1457.363123 | D9: 602.7373153 | E9: 36.25252542 | F9: 813.6582059 | G9: 321.2989983 | H9: 0 | I9: 788.7164684 | J9: 300.2079315 | K9: 36.25252542 | L9: 842.0801858 | M9: 328.5500834 | N9: 0 | O9: 820.0386504 | P9: 308.3288598
A10: Compliance - RIN Reporting | B10: 1944.25 | C10: 2398.2224 | D10: 1405.377855 | E10: 1944.25 | F10: 1952.0151 | G10: 1550.277722 | H10: 420 | I10: 624.2341 | J10: 827.626716 | K10: 560 | L10: 2146.8279 | M10: 1939.88249 | N10: 420 | O10: 668.99 | P10: 732.136426
A11: Currency | B11: 3218.718096 | C11: 2805.414987 | D11: 1026.416428 | E11: 1409.94326 | F11: 2930.468397 | G11: 1153.731691 | H11: 2662.874464 | I11: 3529.819365 | J11: 1294.830451 | K11: 2400.37221 | L11: 3096.211049 | M11: 1128.762474 | N11: 2004.069622 | O11: 4398.661454 | P11: 1660.182299
A12: Currency - IEE / MTS Upgrade | B12: 0 | C12: 0 | D12: 0 | E12: 0 | F12: 0 | G12: 0 | H12: 0 | I12: 2088.145464 | J12: 812.037718 | K12: 0 | L12: 0 | M12: 0 | N12: 0 | O12: 0 | P12: 0
A13: Currency - Refresh Telephony Solution | B13: 0 | C13: 0 | D13: 0 | E13: 145.0101017 | F13: 102.2321217 | G13: 51.96582003 | H13: 652.5454575 | I13: 145.0101017 | J13: 123.9518797 | K13: 652.5454575 | L13: 569.164649 | M13: 272.1543788 | N13: 145.0101017 | O13: 102.9571722 | P13: 52.03687498
A14: Currency - USB Upgrade | B14: 0 | C14: 984.6185903 | D14: 311.0294844 | E14: 0 | F14: 0 | G14: 0 | H14: 0 | I14: 0 | J14: 0 | K14: 0 | L14: 551.0383863 | M14: 174.0040739 | N14: 0 | O14: 0 | P14: 0
A15: Customer Engagement | B15: 108.7575763 | C15: 247.2422233 | D15: 101.7084974 | E15: 0 | F15: 36.25252542 | G15: 3.623802441 | H15: 217.5151525 | I15: 182.2438984 | J15: 148.3040061 | K15: 72.50505083 | L15: 761.3030338 | M15: 230.754002 | N15: 72.50505083 | O15: 181.2626271 | P15: 75.75167475
A16: Customer Engagement - Billing / CRM Implementation | B16: 5811.279824 | C16: 7355.103159 | D16: 2332.884218 | E16: 2642.809103 | F16: 7170.024477 | G16: 1897.079299 | H16: 0 | I16: 0 | J16: 0 | K16: 0 | L16: 0 | M16: 0 | N16: 0 | O16: 0 | P16: 0
A17: Device Replacement | B17: 828.8066862 | C17: 0 | D17: 0 | E17: 595.1968625 | F17: 0 | G17: 0 | H17: 814.0577087 | I17: 0 | J17: 0 | K17: 412.0425786 | L17: 0 | M17: 0 | N17: 444.8547394 | O17: 0 | P17: 0
A18: Infrastructure | B18: 156.3603323 | C18: 78.450465 | D18: 20.14146809 | E18: 156.3603323 | F18: 76.27531348 | G18: 19.43084609 | H18: 870.06061 | I18: 105.3051758 | J18: 68.11856776 | K18: 145.0101017 | L18: 38.92488758 | M18: 10.14316659 | N18: 156.3603323 | O18: 76.27531348 | P18: 19.14046336
A19: Infrastructure - Data Warehouse Hardware Refresh | B19: 0 | C19: 0 | D19: 0 | E19: 2283.909101 | F19: 192.8634352 | G19: 60.90402519 | H19: 0 | I19: 0 | J19: 0 | K19: 0 | L19: 0 | M19: 0 | N19: 0 | O19: 0 | P19: 0
A20: Infrastructure - Network Infrastructure Refresh | B20: 260.5806875 | C20: 448.000081 | D20: 95.70688462 | E20: 260.5806875 | F20: 448.000081 | G20: 95.70688462 | H20: 362.5252542 | I20: 11.73982207 | J20: 21.75129774 | K20: 580.0404067 | L20: 11.73982207 | M20: 33.35290342 | N20: 72.50505083 | O20: 11.73982207 | P20: 52.9286146
A21: Infrastructure - SAN Storage Growth | B21: 85.55595998 | C21: 21.75151525 | D21: 5.807654572 | E21: 533.6371741 | F21: 49.30343457 | G21: 11.61530914 | H21: 540.8876792 | I21: 49.30343457 | J21: 11.61530914 | K21: 197.2137383 | L21: 49.30343457 | M21: 11.61530914 | N21: 203.0141423 | O21: 49.30343457 | P21: 11.61530914
A22: Infrastructure - Server Refresh | B22: 445.9060626 | C22: 65.25454575 | D22: 19.57571118 | E22: 268.2686881 | F22: 38.42767694 | G22: 16.70516371 | H22: 1624.113139 | I22: 206.6393949 | J22: 79.0232549 | K22: 688.7979829 | L22: 52.92868711 | M22: 17.42296372 | N22: 279.1444457 | O22: 48.57838406 | P22: 16.70516371
A23: Infrastructure - Storage Infrastructure Refresh | B23: 0 | C23: 0 | D23: 0 | E23: 837.4333371 | F23: 10.87575763 | G23: 23.23061829 | H23: 2927.753953 | I23: 72.50505083 | J23: 58.01129117 | K23: 0 | L23: 0 | M23: 0 | N23: 0 | O23: 0 | P23: 0
A24: Security | B24: 812.0565693 | C24: 761.820927 | D24: 179.2376128 | E24: 647.3665253 | F24: 808.4313168 | G24: 164.2008421 | H24: 1237.764796 | I24: 893.3658049 | J24: 206.2462103 | K24: 1177.97344 | L24: 1048.733771 | M24: 235.5220926 | N24: 932.2077964 | O24: 899.0626303 | P24: 201.4867199
A25: Smarter Networks - Asset Management Data Analytics | B25: 354.3479928 | C25: 453.352822 | D25: 295.803964 | E25: 0 | F25: 497.1644078 | G25: 278.4093753 | H25: 566.9567885 | I25: 660.3345715 | J25: 469.4599226 | K25: 566.9567885 | L25: 660.3345715 | M25: 469.4599226 | N25: 0 | O25: 562.7046126 | P25: 373.8555585
A26: Smarter Networks - DMS / OMS Integration | B26: 0 | C26: 0 | D26: 0 | E26: 0 | F26: 285.7462214 | G26: 119.7276668 | H26: 1240.217975 | I26: 1682.727748 | J26: 704.4537314 | K26: 779.5655842 | L26: 1052.271799 | M26: 440.3465498 | N26: 0 | O26: 0 | P26: 0
A27: Smarter Networks - DMS Low Voltage Modelling | B27: 0 | C27: 0 | D27: 0 | E27: 0 | F27: 0 | G27: 0 | H27: 0 | I27: 0 | J27: 0 | K27: 0 | L27: 941.1482689 | M27: 759.5712861 | N27: 0 | O27: 941.1482689 | P27: 762.5151001
A28: Smarter Networks - DMS Mobility Switching Integration | B28: 0 | C28: 0 | D28: 0 | E28: 708.6959856 | F28: 721.1690349 | G28: 666.7000789 | H28: 0 | I28: 0 | J28: 0 | K28: 0 | L28: 0 | M28: 0 | N28: 0 | O28: 0 | P28: 0
A29: Smarter Networks - Lidar Data Management and Application | B29: 0 | C29: 0 | D29: 0 | E29: 832.7177831 | F29: 530.671554 | G29: 222.0379958 | H29: 46.06523906 | I29: 874.2473678 | J29: 365.8794687 | K29: 24.8043595 | L29: 434.2889 | M29: 181.7803786 | N29: 0 | O29: 0 | P29: 0
A30: Smarter Networks - Outage Notification System Extension | B30: 109.8478778 | C30: 306.1566658 | D30: 127.8579688 | E30: 0 | F30: 968.9291515 | G30: 405.3225816 | H30: 0 | I30: 253.9966412 | J30: 106.2983739 | K30: 0 | L30: 0 | M30: 0 | N30: 0 | O30: 0 | P30: 0
A31: Smarter Networks - Remote Diagnostics / Asset Condition Alerts | B31: 0 | C31: 0 | D31: 0 | E31: 0 | F31: 0 | G31: 0 | H31: 0 | I31: 0 | J31: 0 | K31: 708.6959856 | L31: 585.6663625 | M31: 526.6599804 | N31: 708.6959856 | O31: 585.6663625 | P31: 528.1318874
A32: Smarter Networks - Smart Network Advanced Analytics | B32: 0 | C32: 0 | D32: 0 | E32: 187.8044362 | F32: 358.3166903 | G32: 154.6208806 | H32: 159.4565968 | I32: 376.3175684 | J32: 162.6225543 | K32: 159.4565968 | L32: 376.3175684 | M32: 162.5694021 | N32: 159.4565968 | O32: 376.3175684 | P32: 162.4999499
A33: Smarter Networks - Smart Network Demand Management | B33: 460.6523906 | C33: 523.3011158 | D33: 403.2221484 | E33: 354.3479928 | F33: 518.7654615 | G33: 391.1787106 | H33: 354.3479928 | I33: 518.7654615 | J33: 391.1787106 | K33: 0 | L33: 503.4576282 | M33: 351.9311269 | N33: 0 | O33: 551.0819984 | P33: 369.4630608
A34: Smarter Networks - Storage Integration to Network Management | B34: 141.7391971 | C34: 344.7097274 | D34: 189.2231747 | E34: 141.7391971 | F34: 321.4644991 | G34: 180.564398 | H34: 850.4351827 | I34: 887.287374 | J34: 568.0037451 | K34: 0 | L34: 445.061079 | M34: 199.7102453 | N34: 0 | O34: 445.061079 | P34: 199.5018886
B35: =SUM(B8:B34) -> 15363.85279 | C35: 18250.76235 | D35: 7116.730385 | E35: 13986.32309 | F35: 18831.05486 | G35: 7788.332709 | H35: 15547.57799 | I35: 13950.70481 | J35: 6719.62114 | K35: 9162.232806 | L35: 14166.80198 | M35: 7474.192829 | N35: 5597.823864 | O35: 10718.84938 | P35: 5526.27985
A37: AMI | B37: =SUM(B8) -> 0 | C37: 0 | D37: 0 | E37: 0 | F37: 0 | G37: 0 | H37: 0 | I37: 0 | J37: 0 | K37: 0 | L37: 0 | M37: 0 | N37: 0 | O37: 0 | P37: 0
A38: Compliance | B38: =SUM(B9:B10) -> 2569.243538 | C38: 3855.585523 | D38: 2008.11517 | E38: 1980.502525 | F38: 2765.673306 | G38: 1871.57672 | H38: 420 | I38: 1412.950568 | J38: 1127.834648 | K38: 596.2525254 | L38: 2988.908086 | M38: 2268.432573 | N38: 420 | O38: 1489.02865 | P38: 1040.465286
A39: Currency | B39: =SUM(B11:B14) -> 3218.718096 | C39: 3790.033577 | D39: 1337.445912 | E39: 1554.953362 | F39: 3032.700518 | G39: 1205.697511 | H39: 3315.419922 | I39: 5762.97493 | J39: 2230.820049 | K39: 3052.917667 | L39: 4216.414085 | M39: 1574.920927 | N39: 2149.079724 | O39: 4501.618626 | P39: 1712.219174
A40: Customer Engagement | B40: =SUM(B15:B16) -> 5920.037401 | C40: 7602.345383 | D40: 2434.592716 | E40: 2642.809103 | F40: 7206.277002 | G40: 1900.703101 | H40: 217.5151525 | I40: 182.2438984 | J40: 148.3040061 | K40: 72.50505083 | L40: 761.3030338 | M40: 230.754002 | N40: 72.50505083 | O40: 181.2626271 | P40: 75.75167475
A41: Device Replacement | B41: =SUM(B17) -> 828.8066862 | C41: 0 | D41: 0 | E41: 595.1968625 | F41: 0 | G41: 0 | H41: 814.0577087 | I41: 0 | J41: 0 | K41: 412.0425786 | L41: 0 | M41: 0 | N41: 444.8547394 | O41: 0 | P41: 0
A42: Infrastructure | B42: =SUM(B18:B23) -> 948.4030425 | C42: 613.456607 | D42: 141.2317185 | E42: 4340.189321 | F42: 815.7456988 | G42: 227.592847 | H42: 6325.340635 | I42: 445.4928781 | J42: 238.5197207 | K42: 1611.06223 | L42: 152.8968313 | M42: 72.53434287 | N42: 711.0239712 | O42: 185.8969542 | P42: 100.3895508
A43: Security | B43: =SUM(B24) -> 812.0565693 | C43: 761.820927 | D43: 179.2376128 | E43: 647.3665253 | F43: 808.4313168 | G43: 164.2008421 | H43: 1237.764796 | I43: 893.3658049 | J43: 206.2462103 | K43: 1177.97344 | L43: 1048.733771 | M43: 235.5220926 | N43: 932.2077964 | O43: 899.0626303 | P43: 201.4867199
A44: Smarter Networks | B44: =SUM(B25:B34) -> 1066.587458 | C44: 1627.520331 | D44: 1016.107256 | E44: 2225.305395 | F44: 4202.227021 | G44: 2418.561687 | H44: 3217.479775 | I44: 5253.676733 | J44: 2767.896507 | K44: 2239.479314 | L44: 4998.546178 | M44: 3092.028892 | N44: 868.1525824 | O44: 3461.97989 | P44: 2395.967445
B45: =SUM(B37:B44) -> 15363.85279 | C45: =SUM(C37:C44) -> 18250.76235 | D45: 7116.730385 | E45: 13986.32309 | F45: 18831.05486 | G45: 7788.332709 | H45: 15547.57799 | I45: 13950.70481 | J45: 6719.62114 | K45: 9162.232806 | L45: 14166.80198 | M45: 7474.192829 | N45: 5597.823864 | O45: 10718.84938 | P45: 5526.27985
A48: Recurrent | B48: 10286.22034 | C48: 9044.500327 | D48: 3666.108402 | E48: 8396.528776 | F48: 12550.85893 | G48: 4317.35876 | H48: 13829.83527 | I48: 11860.61484 | J48: 5205.604034 | K48: 7564.863369 | L48: 10538.50509 | M48: 5056.229943 | N48: 4455.896252 | O48: 9697.691988 | P48: 4677.828903
A49: Non-Recurrent | B49: 4248.825767 | C49: 9206.26202 | D49: 3450.621984 | E49: 4994.597455 | F49: 6280.195932 | G49: 3470.973949 | H49: 903.6850102 | I49: 2090.089974 | J49: 1514.017106 | K49: 1185.326859 | L49: 3628.296891 | M49: 2417.962887 | N49: 697.0728728 | O49: 1021.15739 | P49: 848.4509479
A50: Device Replacement | B50: 828.8066862 | C50: 0 | D50: 0 | E50: 595.1968625 | F50: 0 | G50: 0 | H50: 814.0577087 | I50: 0 | J50: 0 | K50: 412.0425786 | L50: 0 | M50: 0 | N50: 444.8547394 | O50: 0 | P50: 0
B51: =SUM(B48:B50)-B35 -> 0 | C51: =SUM(C48:C50)-C35 -> 0 | D51: 0 | E51: 0 | F51: 0 | G51: 0 | H51: 0 | I51: 0 | J51: 0 | K51: 0 | L51: 0 | M51: 0 | N51: 0 | O51: 0 | P51: 0
A53: IT Category | B53: 2016 PAL AMI (Excl margins) | E53: 2017 PAL AMI (Excl margins) | H53: 2018 PAL AMI (Excl margins) | K53: 2019 PAL AMI (Excl margins) | N53: 2020 PAL AMI (Excl margins)
B54: Material | C54: Contract | D54: Labour | E54: Material | F54: Contract | G54: Labour | H54: Material | I54: Contract | J54: Labour | K54: Material | L54: Contract | M54: Labour | N54: Material | O54: Contract | P54: Labour
A55: AMI | B55: 98.96396687 | C55: 394.7451108 | D55: 170.4849211 | E55: 217.5901227 | F55: 373.6375129 | G55: 107.6954746 | H55: 52.78367701 | I55: 353.7023756 | J55: 139.5719473 | K55: 31.85220838 | L55: 214.2586389 | M55: 84.28699109 | N55: 896.5481345 | O55: 690.5829848 | P55: 208.5348157
A56: Compliance | B56: 0 | C56: 0 | D56: 0 | E56: 0 | F56: 0 | G56: 0 | H56: 0 | I56: 0 | J56: 0 | K56: 0 | L56: 0 | M56: 0 | N56: 0 | O56: 0 | P56: 0
A57: Compliance - RIN Reporting | B57: 0 | C57: 0 | D57: 0 | E57: 0 | F57: 0 | G57: 0 | H57: 0 | I57: 0 | J57: 0 | K57: 0 | L57: 0 | M57: 0 | N57: 0 | O57: 0 | P57: 0
A58: Currency | B58: 0 | C58: 0 | D58: 0 | E58: 0 | F58: 0 | G58: 0 | H58: 0 | I58: 0 | J58: 0 | K58: 0 | L58: 0 | M58: 0 | N58: 0 | O58: 0 | P58: 0
A59: Currency - IEE / MTS Upgrade | B59: 0 | C59: 0 | D59: 0 | E59: 0 | F59: 0 | G59: 0 | H59: 0 | I59: 0 | J59: 0 | K59: 0 | L59: 0 | M59: 0 | N59: 0 | O59: 0 | P59: 0
A60: Currency - Refresh Telephony Solution | B60: 0 | C60: 0 | D60: 0 | E60: 0 | F60: 0 | G60: 0 | H60: 0 | I60: 0 | J60: 0 | K60: 0 | L60: 0 | M60: 0 | N60: 0 | O60: 0 | P60: 0
A61: Currency - USB Upgrade | B61: 0 | C61: 0 | D61: 0 | E61: 0 | F61: 0 | G61: 0 | H61: 0 | I61: 0 | J61: 0 | K61: 0 | L61: 0 | M61: 0 | N61: 0 | O61: 0 | P61: 0
A62: Customer Engagement | B62: 0 | C62: 0 | D62: 0 | E62: 0 | F62: 0 | G62: 0 | H62: 0 | I62: 0 | J62: 0 | K62: 0 | L62: 0 | M62: 0 | N62: 0 | O62: 0 | P62: 0
A63: Customer Engagement - Billing / CRM Implementation | B63: 0 | C63: 0 | D63: 0 | E63: 0 | F63: 0 | G63: 0 | H63: 0 | I63: 0 | J63: 0 | K63: 0 | L63: 0 | M63: 0 | N63: 0 | O63: 0 | P63: 0
A64: Device Replacement | B64: 0 | C64: 0 | D64: 0 | E64: 0 | F64: 0 | G64: 0 | H64: 0 | I64: 0 | J64: 0 | K64: 0 | L64: 0 | M64: 0 | N64: 0 | O64: 0 | P64: 0
A65: Infrastructure | B65: 0 | C65: 0 | D65: 0 | E65: 0 | F65: 0 | G65: 0 | H65: 0 | I65: 0 | J65: 0 | K65: 0 | L65: 0 | M65: 0 | N65: 0 | O65: 0 | P65: 0
A66: Infrastructure - Data Warehouse Hardware Refresh | B66: 0 | C66: 0 | D66: 0 | E66: 0 | F66: 0 | G66: 0 | H66: 0 | I66: 0 | J66: 0 | K66: 0 | L66: 0 | M66: 0 | N66: 0 | O66: 0 | P66: 0
A67: Infrastructure - Network Infrastructure Refresh | B67: 0 | C67: 0 | D67: 0 | E67: 0 | F67: 0 | G67: 0 | H67: 0 | I67: 0 | J67: 0 | K67: 0 | L67: 0 | M67: 0 | N67: 0 | O67: 0 | P67: 0
A68: Infrastructure - SAN Storage Growth | B68: 0 | C68: 0 | D68: 0 | E68: 0 | F68: 0 | G68: 0 | H68: 0 | I68: 0 | J68: 0 | K68: 0 | L68: 0 | M68: 0 | N68: 0 | O68: 0 | P68: 0
A69: Infrastructure - Server Refresh | B69: 0 | C69: 0 | D69: 0 | E69: 0 | F69: 0 | G69: 0 | H69: 0 | I69: 0 | J69: 0 | K69: 0 | L69: 0 | M69: 0 | N69: 0 | O69: 0 | P69: 0
A70: Infrastructure - Storage Infrastructure Refresh | B70: 0 | C70: 0 | D70: 0 | E70: 0 | F70: 0 | G70: 0 | H70: 0 | I70: 0 | J70: 0 | K70: 0 | L70: 0 | M70: 0 | N70: 0 | O70: 0 | P70: 0
A71: Security | B71: 0 | C71: 0 | D71: 0 | E71: 0 | F71: 0 | G71: 0 | H71: 0 | I71: 0 | J71: 0 | K71: 0 | L71: 0 | M71: 0 | N71: 0 | O71: 0 | P71: 0
A72: Smarter Networks - Asset Management Data Analytics | B72: 0 | C72: 0 | D72: 0 | E72: 0 | F72: 0 | G72: 0 | H72: 0 | I72: 0 | J72: 0 | K72: 0 | L72: 0 | M72: 0 | N72: 0 | O72: 0 | P72: 0
A73: Smarter Networks - DMS / OMS Integration | B73: 0 | C73: 0 | D73: 0 | E73: 0 | F73: 0 | G73: 0 | H73: 0 | I73: 0 | J73: 0 | K73: 0 | L73: 0 | M73: 0 | N73: 0 | O73: 0 | P73: 0
A74: Smarter Networks - DMS Low Voltage Modelling | B74: 0 | C74: 0 | D74: 0 | E74: 0 | F74: 0 | G74: 0 | H74: 0 | I74: 0 | J74: 0 | K74: 0 | L74: 0 | M74: 0 | N74: 0 | O74: 0 | P74: 0
A75: Smarter Networks - DMS Mobility Switching Integration | B75: 0 | C75: 0 | D75: 0 | E75: 0 | F75: 0 | G75: 0 | H75: 0 | I75: 0 | J75: 0 | K75: 0 | L75: 0 | M75: 0 | N75: 0 | O75: 0 | P75: 0
A76: Smarter Networks - Lidar Data Management and Application | B76: 0 | C76: 0 | D76: 0 | E76: 0 | F76: 0 | G76: 0 | H76: 0 | I76: 0 | J76: 0 | K76: 0 | L76: 0 | M76: 0 | N76: 0 | O76: 0 | P76: 0
A77: Smarter Networks - Outage Notification System Extension | B77: 0 | C77: 0 | D77: 0 | E77: 0 | F77: 0 | G77: 0 | H77: 0 | I77: 0 | J77: 0 | K77: 0 | L77: 0 | M77: 0 | N77: 0 | O77: 0 | P77: 0
A78: Smarter Networks - Remote Diagnostics / Asset Condition Alerts | B78: 0 | C78: 0 | D78: 0 | E78: 0 | F78: 0 | G78: 0 | H78: 0 | I78: 0 | J78: 0 | K78: 0 | L78: 0 | M78: 0 | N78: 0 | O78: 0 | P78: 0
A79: Smarter Networks - Smart Network Advanced Analytics | B79: 0 | C79: 0 | D79: 0 | E79: 0 | F79: 0 | G79: 0 | H79: 0 | I79: 0 | J79: 0 | K79: 0 | L79: 0 | M79: 0 | N79: 0 | O79: 0 | P79: 0
A80: Smarter Networks - Smart Network Demand Management | B80: 0 | C80: 0 | D80: 0 | E80: 0 | F80: 0 | G80: 0 | H80: 0 | I80: 0 | J80: 0 | K80: 0 | L80: 0 | M80: 0 | N80: 0 | O80: 0 | P80: 0
A81: Smarter Networks - Storage Integration to Network Management | B81: 0 | C81: 0 | D81: 0 | E81: 0 | F81: 0 | G81: 0 | H81: 0 | I81: 0 | J81: 0 | K81: 0 | L81: 0 | M81: 0 | N81: 0 | O81: 0 | P81: 0
B82: =SUM(B55:B81) -> 98.96396687 | C82: 394.7451108 | D82: 170.4849211 | E82: 217.5901227 | F82: 373.6375129 | G82: 107.6954746 | H82: 52.78367701 | I82: 353.7023756 | J82: 139.5719473 | K82: 31.85220838 | L82: 214.2586389 | M82: 84.28699109 | N82: 896.5481345 | O82: 690.5829848 | P82: 208.5348157
A84: AMI | B84: =SUM(B55) -> 98.96396687 | C84: 394.7451108 | D84: 170.4849211 | E84: 217.5901227 | F84: 373.6375129 | G84: 107.6954746 | H84: 52.78367701 | I84: 353.7023756 | J84: 139.5719473 | K84: 31.85220838 | L84: 214.2586389 | M84: 84.28699109 | N84: 896.5481345 | O84: 690.5829848 | P84: 208.5348157
A85: Compliance | B85: =SUM(B56:B57) -> 0 | C85: 0 | D85: 0 | E85: 0 | F85: 0 | G85: 0 | H85: 0 | I85: 0 | J85: 0 | K85: 0 | L85: 0 | M85: 0 | N85: 0 | O85: 0 | P85: 0
A86: Currency | B86: =SUM(B58:B61) -> 0 | C86: 0 | D86: 0 | E86: 0 | F86: 0 | G86: 0 | H86: 0 | I86: 0 | J86: 0 | K86: 0 | L86: 0 | M86: 0 | N86: 0 | O86: 0 | P86: 0
A87: Customer Engagement | B87: =SUM(B62:B63) -> 0 | C87: 0 | D87: 0 | E87: 0 | F87: 0 | G87: 0 | H87: 0 | I87: 0 | J87: 0 | K87: 0 | L87: 0 | M87: 0 | N87: 0 | O87: 0 | P87: 0
A88: Device Replacement | B88: =SUM(B64) -> 0 | C88: 0 | D88: 0 | E88: 0 | F88: 0 | G88: 0 | H88: 0 | I88: 0 | J88: 0 | K88: 0 | L88: 0 | M88: 0 | N88: 0 | O88: 0 | P88: 0
A89: Infratructure | B89: =SUM(B65:B70) -> 0 | C89: 0 | D89: 0 | E89: 0 | F89: 0 | G89: 0 | H89: 0 | I89: 0 | J89: 0 | K89: 0 | L89: 0 | M89: 0 | N89: 0 | O89: 0 | P89: 0
A90: Security | B90: =SUM(B71) -> 0 | C90: 0 | D90: 0 | E90: 0 | F90: 0 | G90: 0 | H90: 0 | I90: 0 | J90: 0 | K90: 0 | L90: 0 | M90: 0 | N90: 0 | O90: 0 | P90: 0
A91: Smarter Networks | B91: =SUM(B72:B81) -> 0 | C91: 0 | D91: 0 | E91: 0 | F91: 0 | G91: 0 | H91: 0 | I91: 0 | J91: 0 | K91: 0 | L91: 0 | M91: 0 | N91: 0 | O91: 0 | P91: 0
B92: =SUM(B84:B91) -> 98.96396687 | C92: =SUM(C84:C91) -> 394.7451108 | D92: 170.4849211 | E92: 217.5901227 | F92: 373.6375129 | G92: 107.6954746 | H92: 52.78367701 | I92: 353.7023756 | J92: 139.5719473 | K92: 31.85220838 | L92: 214.2586389 | M92: 84.28699109 | N92: 896.5481345 | O92: 690.5829848 | P92: 208.5348157
A95: Recurrent | B95: 75.7623506 | C95: 394.7451108 | D95: 170.4849211 | E95: 217.5901227 | F95: 373.6375129 | G95: 107.6954746 | H95: 52.78367701 | I95: 353.7023756 | J95: 139.5719473 | K95: 31.85220838 | L95: 214.2586389 | M95: 84.28699109 | N95: 896.5481345 | O95: 690.5829848 | P95: 208.5348157
A96: Non-Recurrent | B96: 23.20161627 | C96: 0 | D96: 0 | E96: 0 | F96: 0 | G96: 0 | H96: 0 | I96: 0 | J96: 0 | K96: 0 | L96: 0 | M96: 0 | N96: 0 | O96: 0 | P96: 0
A97: Device Replacements | B97: 0 | C97: 0 | D97: 0 | E97: 0 | F97: 0 | G97: 0 | H97: 0 | I97: 0 | J97: 0 | K97: 0 | L97: 0 | M97: 0 | N97: 0 | O97: 0 | P97: 0
B98: =SUM(B95:B97)-B82 -> 0 | C98: =SUM(C95:C97)-C82 -> 0 | D98: 0 | E98: 0 | F98: 0 | G98: 0 | H98: 0 | I98: 0 | J98: 0 | K98: 0 | L98: 0 | M98: 0 | N98: 0 | O98: 0 | P98: 0
A101: Escalation
A102: IT Category | B102: 2016 PAL SCS Escalation | E102: 2017 PAL SCS Escalation | H102: 2018 PAL SCS Escalation | K102: 2019 PAL SCS Escalation | N102: 2020 PAL SCS Escalation
B103: Material | C103: Contract | D103: Labour | E103: Material | F103: Contract | G103: Labour | H103: Material | I103: Contract | J103: Labour | K103: Material | L103: Contract | M103: Labour | N103: Material | O103: Contract | P103: Labour
A104: =A8 -> AMI | B104: =B8*VLOOKUP("Materials ",Escalators!$A$22:$P$24,12,0) -> 0 | C104: =C8*VLOOKUP("Contracts",Escalators!$A$22:$P$24,12,0) -> 0 | D104: =D8*VLOOKUP("Labour",Escalators!$A$22:$P$24,12,0) -> 0 | E104: =E8*VLOOKUP("Materials ",Escalators!$A$22:$P$24,13,0) -> 0 | F104: =F8*VLOOKUP("Contracts",Escalators!$A$22:$P$24,13,0) -> 0 | G104: =G8*VLOOKUP("Labour",Escalators!$A$22:$P$24,13,0) -> 0 | H104: =H8*VLOOKUP("Materials ",Escalators!$A$22:$P$24,14,0) -> 0 | I104: =I8*VLOOKUP("Contracts",Escalators!$A$22:$P$24,14,0) -> 0 | J104: =J8*VLOOKUP("Labour",Escalators!$A$22:$P$24,14,0) -> 0 | K104: =K8*VLOOKUP("Materials ",Escalators!$A$22:$P$24,15,0) -> 0 | L104: =L8*VLOOKUP("Contracts",Escalators!$A$22:$P$24,15,0) -> 0 | M104: =M8*VLOOKUP("Labour",Escalators!$A$22:$P$24,15,0) -> 0 | N104: =N8*VLOOKUP("Materials ",Escalators!$A$22:$P$24,16,0) -> 0 | O104: =O8*VLOOKUP("Contracts",Escalators!$A$22:$P$24,16,0) -> 0 | P104: =P8*VLOOKUP("Labour",Escalators!$A$22:$P$24,16,0) -> 0
A105: Compliance | B105: =B9*VLOOKUP("Materials ",Escalators!$A$22:$P$24,12,0) -> 0 | C105: =C9*VLOOKUP("Contracts",Escalators!$A$22:$P$24,12,0) -> 14.06227574 | D105: =D9*VLOOKUP("Labour",Escalators!$A$22:$P$24,12,0) -> 11.29146585 | E105: =E9*VLOOKUP("Materials ",Escalators!$A$22:$P$24,13,0) -> 0 | F105: =F9*VLOOKUP("Contracts",Escalators!$A$22:$P$24,13,0) -> 25.54636611 | G105: =G9*VLOOKUP("Labour",Escalators!$A$22:$P$24,13,0) -> 11.53235983 | H105: =H9*VLOOKUP("Materials ",Escalators!$A$22:$P$24,14,0) -> 0 | I105: =I9*VLOOKUP("Contracts",Escalators!$A$22:$P$24,14,0) -> 38.87627359 | J105: =J9*VLOOKUP("Labour",Escalators!$A$22:$P$24,14,0) -> 16.01345934 | K105: =K9*VLOOKUP("Materials ",Escalators!$A$22:$P$24,15,0) -> 0 | L105: =L9*VLOOKUP("Contracts",Escalators!$A$22:$P$24,15,0) -> 56.66364521 | M105: =M9*VLOOKUP("Labour",Escalators!$A$22:$P$24,15,0) -> 23.35446561 | N105: =N9*VLOOKUP("Materials ",Escalators!$A$22:$P$24,16,0) -> 0 | O105: =O9*VLOOKUP("Contracts",Escalators!$A$22:$P$24,16,0) -> 70.44988584 | P105: =P9*VLOOKUP("Labour",Escalators!$A$22:$P$24,16,0) -> 27.47964639
A106: Compliance - RIN Reporting | B106: =B10*VLOOKUP("Materials ",Escalators!$A$22:$P$24,12,0) -> 0 | C106: =C10*VLOOKUP("Contracts",Escalators!$A$22:$P$24,12,0) -> 23.14074246 | D106: =D10*VLOOKUP("Labour",Escalators!$A$22:$P$24,12,0) -> 26.32784739 | E106: =E10*VLOOKUP("Materials ",Escalators!$A$22:$P$24,13,0) -> 0 | F106: =F10*VLOOKUP("Contracts",Escalators!$A$22:$P$24,13,0) -> 61.28727277 | G106: =G10*VLOOKUP("Labour",Escalators!$A$22:$P$24,13,0) -> 55.64399709 | H106: =H10*VLOOKUP("Materials ",Escalators!$A$22:$P$24,14,0) -> 0 | I106: =I10*VLOOKUP("Contracts",Escalators!$A$22:$P$24,14,0) -> 30.76884613 | J106: =J10*VLOOKUP("Labour",Escalators!$A$22:$P$24,14,0) -> 44.14662429 | K106: =K10*VLOOKUP("Materials ",Escalators!$A$22:$P$24,15,0) -> 0 | L106: =L10*VLOOKUP("Contracts",Escalators!$A$22:$P$24,15,0) -> 144.4602266 | M106: =M10*VLOOKUP("Labour",Escalators!$A$22:$P$24,15,0) -> 137.8934938 | N106: =N10*VLOOKUP("Materials ",Escalators!$A$22:$P$24,16,0) -> 0 | O106: =O10*VLOOKUP("Contracts",Escalators!$A$22:$P$24,16,0) -> 57.47322898 | P106: =P10*VLOOKUP("Labour",Escalators!$A$22:$P$24,16,0) -> 65.25127137
A107: Currency | B107: =B11*VLOOKUP("Materials ",Escalators!$A$22:$P$24,12,0) -> 0 | C107: =C11*VLOOKUP("Contracts",Escalators!$A$22:$P$24,12,0) -> 27.06979373 | D107: =D11*VLOOKUP("Labour",Escalators!$A$22:$P$24,12,0) -> 19.2285192 | E107: =E11*VLOOKUP("Materials ",Escalators!$A$22:$P$24,13,0) -> 0 | F107: =F11*VLOOKUP("Contracts",Escalators!$A$22:$P$24,13,0) -> 92.00769808 | G107: =G11*VLOOKUP("Labour",Escalators!$A$22:$P$24,13,0) -> 41.4108014 | H107: =H11*VLOOKUP("Materials ",Escalators!$A$22:$P$24,14,0) -> 0 | I107: =I11*VLOOKUP("Contracts",Escalators!$A$22:$P$24,14,0) -> 173.9867605 | J107: =J11*VLOOKUP("Labour",Escalators!$A$22:$P$24,14,0) -> 69.06784467 | K107: =K11*VLOOKUP("Materials ",Escalators!$A$22:$P$24,15,0) -> 0 | L107: =L11*VLOOKUP("Contracts",Escalators!$A$22:$P$24,15,0) -> 208.3442971 | M107: =M11*VLOOKUP("Labour",Escalators!$A$22:$P$24,15,0) -> 80.23630404 | N107: =N11*VLOOKUP("Materials ",Escalators!$A$22:$P$24,16,0) -> 0 | O107: =O11*VLOOKUP("Contracts",Escalators!$A$22:$P$24,16,0) -> 377.8909654 | P107: =P11*VLOOKUP("Labour",Escalators!$A$22:$P$24,16,0) -> 147.9628685
A108: Currency - IEE / MTS Upgrade | B108: =B12*VLOOKUP("Materials ",Escalators!$A$22:$P$24,12,0) -> 0 | C108: =C12*VLOOKUP("Contracts",Escalators!$A$22:$P$24,12,0) -> 0 | D108: =D12*VLOOKUP("Labour",Escalators!$A$22:$P$24,12,0) -> 0 | E108: =E12*VLOOKUP("Materials ",Escalators!$A$22:$P$24,13,0) -> 0 | F108: =F12*VLOOKUP("Contracts",Escalators!$A$22:$P$24,13,0) -> 0 | G108: =G12*VLOOKUP("Labour",Escalators!$A$22:$P$24,13,0) -> 0 | H108: =H12*VLOOKUP("Materials ",Escalators!$A$22:$P$24,14,0) -> 0 | I108: =I12*VLOOKUP("Contracts",Escalators!$A$22:$P$24,14,0) -> 102.9258518 | J108: =J12*VLOOKUP("Labour",Escalators!$A$22:$P$24,14,0) -> 43.31508802 | K108: =K12*VLOOKUP("Materials ",Escalators!$A$22:$P$24,15,0) -> 0 | L108: =L12*VLOOKUP("Contracts",Escalators!$A$22:$P$24,15,0) -> 0 | M108: =M12*VLOOKUP("Labour",Escalators!$A$22:$P$24,15,0) -> 0 | N108: =N12*VLOOKUP("Materials ",Escalators!$A$22:$P$24,16,0) -> 0 | O108: =O12*VLOOKUP("Contracts",Escalators!$A$22:$P$24,16,0) -> 0 | P108: =P12*VLOOKUP("Labour",Escalators!$A$22:$P$24,16,0) -> 0
A109: Currency - Refresh Telephony Solution | B109: =B13*VLOOKUP("Materials ",Escalators!$A$22:$P$24,12,0) -> 0 | C109: =C13*VLOOKUP("Contracts",Escalators!$A$22:$P$24,12,0) -> 0 | D109: =D13*VLOOKUP("Labour",Escalators!$A$22:$P$24,12,0) -> 0 | E109: =E13*VLOOKUP("Materials ",Escalators!$A$22:$P$24,13,0) -> 0 | F109: =F13*VLOOKUP("Contracts",Escalators!$A$22:$P$24,13,0) -> 3.209774313 | G109: =G13*VLOOKUP("Labour",Escalators!$A$22:$P$24,13,0) -> 1.865205116 | H109: =H13*VLOOKUP("Materials ",Escalators!$A$22:$P$24,14,0) -> 0 | I109: =I13*VLOOKUP("Contracts",Escalators!$A$22:$P$24,14,0) -> 7.147628598 | J109: =J13*VLOOKUP("Labour",Escalators!$A$22:$P$24,14,0) -> 6.611745318 | K109: =K13*VLOOKUP("Materials ",Escalators!$A$22:$P$24,15,0) -> 0 | L109: =L13*VLOOKUP("Contracts",Escalators!$A$22:$P$24,15,0) -> 38.29913621 | M109: =M13*VLOOKUP("Labour",Escalators!$A$22:$P$24,15,0) -> 19.3456657 | N109: =N13*VLOOKUP("Materials ",Escalators!$A$22:$P$24,16,0) -> 0 | O109: =O13*VLOOKUP("Contracts",Escalators!$A$22:$P$24,16,0) -> 8.845096537 | P109: =P13*VLOOKUP("Labour",Escalators!$A$22:$P$24,16,0) -> 4.637758934
A110: Currency - USB Upgrade | B110: =B14*VLOOKUP("Materials ",Escalators!$A$22:$P$24,12,0) -> 0 | C110: =C14*VLOOKUP("Contracts",Escalators!$A$22:$P$24,12,0) -> 9.500705696 | D110: =D14*VLOOKUP("Labour",Escalators!$A$22:$P$24,12,0) -> 5.826715406 | E110: =E14*VLOOKUP("Materials ",Escalators!$A$22:$P$24,13,0) -> 0 | F110: =F14*VLOOKUP("Contracts",Escalators!$A$22:$P$24,13,0) -> 0 | G110: =G14*VLOOKUP("Labour",Escalators!$A$22:$P$24,13,0) -> 0 | H110: =H14*VLOOKUP("Materials ",Escalators!$A$22:$P$24,14,0) -> 0 | I110: =I14*VLOOKUP("Contracts",Escalators!$A$22:$P$24,14,0) -> 0 | J110: =J14*VLOOKUP("Labour",Escalators!$A$22:$P$24,14,0) -> 0 | K110: =K14*VLOOKUP("Materials ",Escalators!$A$22:$P$24,15,0) -> 0 | L110: =L14*VLOOKUP("Contracts",Escalators!$A$22:$P$24,15,0) -> 37.0794185 | M110: =M14*VLOOKUP("Labour",Escalators!$A$22:$P$24,15,0) -> 12.36880575 | N110: =N14*VLOOKUP("Materials ",Escalators!$A$22:$P$24,16,0) -> 0 | O110: =O14*VLOOKUP("Contracts",Escalators!$A$22:$P$24,16,0) -> 0 | P110: =P14*VLOOKUP("Labour",Escalators!$A$22:$P$24,16,0) -> 0
A111: Customer Engagement | B111: =B15*VLOOKUP("Materials ",Escalators!$A$22:$P$24,12,0) -> 0 | C111: =C15*VLOOKUP("Contracts",Escalators!$A$22:$P$24,12,0) -> 2.385670576 | D111: =D15*VLOOKUP("Labour",Escalators!$A$22:$P$24,12,0) -> 1.905370709 | E111: =E15*VLOOKUP("Materials ",Escalators!$A$22:$P$24,13,0) -> 0 | F111: =F15*VLOOKUP("Contracts",Escalators!$A$22:$P$24,13,0) -> 1.138217842 | G111: =G15*VLOOKUP("Labour",Escalators!$A$22:$P$24,13,0) -> 0.1300688577 | H111: =H15*VLOOKUP("Materials ",Escalators!$A$22:$P$24,14,0) -> 0 | I111: =I15*VLOOKUP("Contracts",Escalators!$A$22:$P$24,14,0) -> 8.982903159 | J111: =J15*VLOOKUP("Labour",Escalators!$A$22:$P$24,14,0) -> 7.910717614 | K111: =K15*VLOOKUP("Materials ",Escalators!$A$22:$P$24,15,0) -> 0 | L111: =L15*VLOOKUP("Contracts",Escalators!$A$22:$P$24,15,0) -> 51.22814398 | M111: =M15*VLOOKUP("Labour",Escalators!$A$22:$P$24,15,0) -> 16.40278507 | N111: =N15*VLOOKUP("Materials ",Escalators!$A$22:$P$24,16,0) -> 0 | O111: =O15*VLOOKUP("Contracts",Escalators!$A$22:$P$24,16,0) -> 15.57235306 | P111: =P15*VLOOKUP("Labour",Escalators!$A$22:$P$24,16,0) -> 6.751327909
A112: Customer Engagement - Billing / CRM Implementation | B112: =B16*VLOOKUP("Materials ",Escalators!$A$22:$P$24,12,0) -> 0 | C112: =C16*VLOOKUP("Contracts",Escalators!$A$22:$P$24,12,0) -> 70.97029364 | D112: =D16*VLOOKUP("Labour",Escalators!$A$22:$P$24,12,0) -> 43.70342073 | E112: =E16*VLOOKUP("Materials ",Escalators!$A$22:$P$24,13,0) -> 0 | F112: =F16*VLOOKUP("Contracts",Escalators!$A$22:$P$24,13,0) -> 225.1167247 | G112: =G16*VLOOKUP("Labour",Escalators!$A$22:$P$24,13,0) -> 68.09171897 | H112: =H16*VLOOKUP("Materials ",Escalators!$A$22:$P$24,14,0) -> 0 | I112: =I16*VLOOKUP("Contracts",Escalators!$A$22:$P$24,14,0) -> 0 | J112: =J16*VLOOKUP("Labour",Escalators!$A$22:$P$24,14,0) -> 0 | K112: =K16*VLOOKUP("Materials ",Escalators!$A$22:$P$24,15,0) -> 0 | L112: =L16*VLOOKUP("Contracts",Escalators!$A$22:$P$24,15,0) -> 0 | M112: =M16*VLOOKUP("Labour",Escalators!$A$22:$P$24,15,0) -> 0 | N112: =N16*VLOOKUP("Materials ",Escalators!$A$22:$P$24,16,0) -> 0 | O112: =O16*VLOOKUP("Contracts",Escalators!$A$22:$P$24,16,0) -> 0 | P112: =P16*VLOOKUP("Labour",Escalators!$A$22:$P$24,16,0) -> 0
A113: Device Replacement | B113: =B17*VLOOKUP("Materials ",Escalators!$A$22:$P$24,12,0) -> 0 | C113: =C17*VLOOKUP("Contracts",Escalators!$A$22:$P$24,12,0) -> 0 | D113: =D17*VLOOKUP("Labour",Escalators!$A$22:$P$24,12,0) -> 0 | E113: =E17*VLOOKUP("Materials ",Escalators!$A$22:$P$24,13,0) -> 0 | F113: =F17*VLOOKUP("Contracts",Escalators!$A$22:$P$24,13,0) -> 0 | G113: =G17*VLOOKUP("Labour",Escalators!$A$22:$P$24,13,0) -> 0 | H113: =H17*VLOOKUP("Materials ",Escalators!$A$22:$P$24,14,0) -> 0 | I113: =I17*VLOOKUP("Contracts",Escalators!$A$22:$P$24,14,0) -> 0 | J113: =J17*VLOOKUP("Labour",Escalators!$A$22:$P$24,14,0) -> 0 | K113: =K17*VLOOKUP("Materials ",Escalators!$A$22:$P$24,15,0) -> 0 | L113: =L17*VLOOKUP("Contracts",Escalators!$A$22:$P$24,15,0) -> 0 | M113: =M17*VLOOKUP("Labour",Escalators!$A$22:$P$24,15,0) -> 0 | N113: =N17*VLOOKUP("Materials ",Escalators!$A$22:$P$24,16,0) -> 0 | O113: =O17*VLOOKUP("Contracts",Escalators!$A$22:$P$24,16,0) -> 0 | P113: =P17*VLOOKUP("Labour",Escalators!$A$22:$P$24,16,0) -> 0
A114: Infrastructure | B114: =B18*VLOOKUP("Materials ",Escalators!$A$22:$P$24,12,0) -> 0 | C114: =C18*VLOOKUP("Contracts",Escalators!$A$22:$P$24,12,0) -> 0.7569781711 | D114: =D18*VLOOKUP("Labour",Escalators!$A$22:$P$24,12,0) -> 0.3773230781 | E114: =E18*VLOOKUP("Materials ",Escalators!$A$22:$P$24,13,0) -> 0 | F114: =F18*VLOOKUP("Contracts",Escalators!$A$22:$P$24,13,0) -> 2.394810339 | G114: =G18*VLOOKUP("Labour",Escalators!$A$22:$P$24,13,0) -> 0.6974298397 | H114: =H18*VLOOKUP("Materials ",Escalators!$A$22:$P$24,14,0) -> 0 | I114: =I18*VLOOKUP("Contracts",Escalators!$A$22:$P$24,14,0) -> 5.190550707 | J114: =J18*VLOOKUP("Labour",Escalators!$A$22:$P$24,14,0) -> 3.633527967 | K114: =K18*VLOOKUP("Materials ",Escalators!$A$22:$P$24,15,0) -> 0 | L114: =L18*VLOOKUP("Contracts",Escalators!$A$22:$P$24,15,0) -> 2.619258898 | M114: =M18*VLOOKUP("Labour",Escalators!$A$22:$P$24,15,0) -> 0.7210110339 | N114: =N18*VLOOKUP("Materials ",Escalators!$A$22:$P$24,16,0) -> 0 | O114: =O18*VLOOKUP("Contracts",Escalators!$A$22:$P$24,16,0) -> 6.552846167 | P114: =P18*VLOOKUP("Labour",Escalators!$A$22:$P$24,16,0) -> 1.705883664
A115: Infrastructure - Data Warehouse Hardware Refresh | B115: =B19*VLOOKUP("Materials ",Escalators!$A$22:$P$24,12,0) -> 0 | C115: =C19*VLOOKUP("Contracts",Escalators!$A$22:$P$24,12,0) -> 0 | D115: =D19*VLOOKUP("Labour",Escalators!$A$22:$P$24,12,0) -> 0 | E115: =E19*VLOOKUP("Materials ",Escalators!$A$22:$P$24,13,0) -> 0 | F115: =F19*VLOOKUP("Contracts",Escalators!$A$22:$P$24,13,0) -> 6.055318917 | G115: =G19*VLOOKUP("Labour",Escalators!$A$22:$P$24,13,0) -> 2.186023415 | H115: =H19*VLOOKUP("Materials ",Escalators!$A$22:$P$24,14,0) -> 0 | I115: =I19*VLOOKUP("Contracts",Escalators!$A$22:$P$24,14,0) -> 0 | J115: =J19*VLOOKUP("Labour",Escalators!$A$22:$P$24,14,0) -> 0 | K115: =K19*VLOOKUP("Materials ",Escalators!$A$22:$P$24,15,0) -> 0 | L115: =L19*VLOOKUP("Contracts",Escalators!$A$22:$P$24,15,0) -> 0 | M115: =M19*VLOOKUP("Labour",Escalators!$A$22:$P$24,15,0) -> 0 | N115: =N19*VLOOKUP("Materials ",Escalators!$A$22:$P$24,16,0) -> 0 | O115: =O19*VLOOKUP("Contracts",Escalators!$A$22:$P$24,16,0) -> 0 | P115: =P19*VLOOKUP("Labour",Escalators!$A$22:$P$24,16,0) -> 0
A116: Infrastructure - Network Infrastructure Refresh | B116: =B20*VLOOKUP("Materials ",Escalators!$A$22:$P$24,12,0) -> 0 | C116: =C20*VLOOKUP("Contracts",Escalators!$A$22:$P$24,12,0) -> 4.322807799 | D116: =D20*VLOOKUP("Labour",Escalators!$A$22:$P$24,12,0) -> 1.792938635 | E116: =E20*VLOOKUP("Materials ",Escalators!$A$22:$P$24,13,0) -> 0 | F116: =F20*VLOOKUP("Contracts",Escalators!$A$22:$P$24,13,0) -> 14.06582519 | G116: =G20*VLOOKUP("Labour",Escalators!$A$22:$P$24,13,0) -> 3.435199728 | H116: =H20*VLOOKUP("Materials ",Escalators!$A$22:$P$24,14,0) -> 0 | I116: =I20*VLOOKUP("Contracts",Escalators!$A$22:$P$24,14,0) -> 0.578662362 | J116: =J20*VLOOKUP("Labour",Escalators!$A$22:$P$24,14,0) -> 1.160240904 | K116: =K20*VLOOKUP("Materials ",Escalators!$A$22:$P$24,15,0) -> 0 | L116: =L20*VLOOKUP("Contracts",Escalators!$A$22:$P$24,15,0) -> 0.7899735959 | M116: =M20*VLOOKUP("Labour",Escalators!$A$22:$P$24,15,0) -> 2.370838649 | N116: =N20*VLOOKUP("Materials ",Escalators!$A$22:$P$24,16,0) -> 0 | O116: =O20*VLOOKUP("Contracts",Escalators!$A$22:$P$24,16,0) -> 1.008573345 | P116: =P20*VLOOKUP("Labour",Escalators!$A$22:$P$24,16,0) -> 4.717234756
A117: Infrastructure - SAN Storage Growth | B117: =B21*VLOOKUP("Materials ",Escalators!$A$22:$P$24,12,0) -> 0 | C117: =C21*VLOOKUP("Contracts",Escalators!$A$22:$P$24,12,0) -> 0.2098830419 | D117: =D21*VLOOKUP("Labour",Escalators!$A$22:$P$24,12,0) -> 0.108798529 | E117: =E21*VLOOKUP("Materials ",Escalators!$A$22:$P$24,13,0) -> 0 | F117: =F21*VLOOKUP("Contracts",Escalators!$A$22:$P$24,13,0) -> 1.547976264 | G117: =G21*VLOOKUP("Labour",Escalators!$A$22:$P$24,13,0) -> 0.4169073831 | H117: =H21*VLOOKUP("Materials ",Escalators!$A$22:$P$24,14,0) -> 0 | I117: =I21*VLOOKUP("Contracts",Escalators!$A$22:$P$24,14,0) -> 2.430193723 | J117: =J21*VLOOKUP("Labour",Escalators!$A$22:$P$24,14,0) -> 0.6195748384 | K117: =K21*VLOOKUP("Materials ",Escalators!$A$22:$P$24,15,0) -> 0 | L117: =L21*VLOOKUP("Contracts",Escalators!$A$22:$P$24,15,0) -> 3.317632181 | M117: =M21*VLOOKUP("Labour",Escalators!$A$22:$P$24,15,0) -> 0.8256559704 | N117: =N21*VLOOKUP("Materials ",Escalators!$A$22:$P$24,16,0) -> 0 | O117: =O21*VLOOKUP("Contracts",Escalators!$A$22:$P$24,16,0) -> 4.235680032 | P117: =P21*VLOOKUP("Labour",Escalators!$A$22:$P$24,16,0) -> 1.035208278
A118: Infrastructure - Server Refresh | B118: =B22*VLOOKUP("Materials ",Escalators!$A$22:$P$24,12,0) -> 0 | C118: =C22*VLOOKUP("Contracts",Escalators!$A$22:$P$24,12,0) -> 0.6296491257 | D118: =D22*VLOOKUP("Labour",Escalators!$A$22:$P$24,12,0) -> 0.36672439 | E118: =E22*VLOOKUP("Materials ",Escalators!$A$22:$P$24,13,0) -> 0 | F118: =F22*VLOOKUP("Contracts",Escalators!$A$22:$P$24,13,0) -> 1.206510912 | G118: =G22*VLOOKUP("Labour",Escalators!$A$22:$P$24,13,0) -> 0.5995971353 | H118: =H22*VLOOKUP("Materials ",Escalators!$A$22:$P$24,14,0) -> 0 | I118: =I22*VLOOKUP("Contracts",Escalators!$A$22:$P$24,14,0) -> 10.18537075 | J118: =J22*VLOOKUP("Labour",Escalators!$A$22:$P$24,14,0) -> 4.215197356 | K118: =K22*VLOOKUP("Materials ",Escalators!$A$22:$P$24,15,0) -> 0 | L118: =L22*VLOOKUP("Contracts",Escalators!$A$22:$P$24,15,0) -> 3.561575724 | M118: =M22*VLOOKUP("Labour",Escalators!$A$22:$P$24,15,0) -> 1.238483956 | N118: =N22*VLOOKUP("Materials ",Escalators!$A$22:$P$24,16,0) -> 0 | O118: =O22*VLOOKUP("Contracts",Escalators!$A$22:$P$24,16,0) -> 4.17339062 | P118: =P22*VLOOKUP("Labour",Escalators!$A$22:$P$24,16,0) -> 1.488838872
A119: Infrastructure - Storage Infrastructure Refresh | B119: =B23*VLOOKUP("Materials ",Escalators!$A$22:$P$24,12,0) -> 0 | C119: =C23*VLOOKUP("Contracts",Escalators!$A$22:$P$24,12,0) -> 0 | D119: =D23*VLOOKUP("Labour",Escalators!$A$22:$P$24,12,0) -> 0 | E119: =E23*VLOOKUP("Materials ",Escalators!$A$22:$P$24,13,0) -> 0 | F119: =F23*VLOOKUP("Contracts",Escalators!$A$22:$P$24,13,0) -> 0.3414653525 | G119: =G23*VLOOKUP("Labour",Escalators!$A$22:$P$24,13,0) -> 0.8338147662 | H119: =H23*VLOOKUP("Materials ",Escalators!$A$22:$P$24,14,0) -> 0 | I119: =I23*VLOOKUP("Contracts",Escalators!$A$22:$P$24,14,0) -> 3.573814299 | J119: =J23*VLOOKUP("Labour",Escalators!$A$22:$P$24,14,0) -> 3.094393435 | K119: =K23*VLOOKUP("Materials ",Escalators!$A$22:$P$24,15,0) -> 0 | L119: =L23*VLOOKUP("Contracts",Escalators!$A$22:$P$24,15,0) -> 0 | M119: =M23*VLOOKUP("Labour",Escalators!$A$22:$P$24,15,0) -> 0 | N119: =N23*VLOOKUP("Materials ",Escalators!$A$22:$P$24,16,0) -> 0 | O119: =O23*VLOOKUP("Contracts",Escalators!$A$22:$P$24,16,0) -> 0 | P119: =P23*VLOOKUP("Labour",Escalators!$A$22:$P$24,16,0) -> 0
A120: Security | B120: =B24*VLOOKUP("Materials ",Escalators!$A$22:$P$24,12,0) -> 0 | C120: =C24*VLOOKUP("Contracts",Escalators!$A$22:$P$24,12,0) -> 7.350903681 | D120: =D24*VLOOKUP("Labour",Escalators!$A$22:$P$24,12,0) -> 3.357773499 | E120: =E24*VLOOKUP("Materials ",Escalators!$A$22:$P$24,13,0) -> 0 | F120: =F24*VLOOKUP("Contracts",Escalators!$A$22:$P$24,13,0) -> 25.38225787 | G120: =G24*VLOOKUP("Labour",Escalators!$A$22:$P$24,13,0) -> 5.89364799 | H120: =H24*VLOOKUP("Materials ",Escalators!$A$22:$P$24,14,0) -> 0 | I120: =I24*VLOOKUP("Contracts",Escalators!$A$22:$P$24,14,0) -> 44.03449761 | J120: =J24*VLOOKUP("Labour",Escalators!$A$22:$P$24,14,0) -> 11.00142587 | K120: =K24*VLOOKUP("Materials ",Escalators!$A$22:$P$24,15,0) -> 0 | L120: =L24*VLOOKUP("Contracts",Escalators!$A$22:$P$24,15,0) -> 70.56938201 | M120: =M24*VLOOKUP("Labour",Escalators!$A$22:$P$24,15,0) -> 16.74171729 | N120: =N24*VLOOKUP("Materials ",Escalators!$A$22:$P$24,16,0) -> 0 | O120: =O24*VLOOKUP("Contracts",Escalators!$A$22:$P$24,16,0) -> 77.23887117 | P120: =P24*VLOOKUP("Labour",Escalators!$A$22:$P$24,16,0) -> 17.95739724
A121: Smarter Networks - Asset Management Data Analytics | B121: =B25*VLOOKUP("Materials ",Escalators!$A$22:$P$24,12,0) -> 0 | C121: =C25*VLOOKUP("Contracts",Escalators!$A$22:$P$24,12,0) -> 4.374457054 | D121: =D25*VLOOKUP("Labour",Escalators!$A$22:$P$24,12,0) -> 5.541485938 | E121: =E25*VLOOKUP("Materials ",Escalators!$A$22:$P$24,13,0) -> 0 | F121: =F25*VLOOKUP("Contracts",Escalators!$A$22:$P$24,13,0) -> 15.6094339 | G121: =G25*VLOOKUP("Labour",Escalators!$A$22:$P$24,13,0) -> 9.992925945 | H121: =H25*VLOOKUP("Materials ",Escalators!$A$22:$P$24,14,0) -> 0 | I121: =I25*VLOOKUP("Contracts",Escalators!$A$22:$P$24,14,0) -> 32.54825846 | J121: =J25*VLOOKUP("Labour",Escalators!$A$22:$P$24,14,0) -> 25.04156817 | K121: =K25*VLOOKUP("Materials ",Escalators!$A$22:$P$24,15,0) -> 0 | L121: =L25*VLOOKUP("Contracts",Escalators!$A$22:$P$24,15,0) -> 44.43396782 | M121: =M25*VLOOKUP("Labour",Escalators!$A$22:$P$24,15,0) -> 33.37081977 | N121: =N25*VLOOKUP("Materials ",Escalators!$A$22:$P$24,16,0) -> 0 | O121: =O25*VLOOKUP("Contracts",Escalators!$A$22:$P$24,16,0) -> 48.34220399 | P121: =P25*VLOOKUP("Labour",Escalators!$A$22:$P$24,16,0) -> 33.31967873
A122: Smarter Networks - DMS / OMS Integration | B122: =B26*VLOOKUP("Materials ",Escalators!$A$22:$P$24,12,0) -> 0 | C122: =C26*VLOOKUP("Contracts",Escalators!$A$22:$P$24,12,0) -> 0 | D122: =D26*VLOOKUP("Labour",Escalators!$A$22:$P$24,12,0) -> 0 | E122: =E26*VLOOKUP("Materials ",Escalators!$A$22:$P$24,13,0) -> 0 | F122: =F26*VLOOKUP("Contracts",Escalators!$A$22:$P$24,13,0) -> 8.971552839 | G122: =G26*VLOOKUP("Labour",Escalators!$A$22:$P$24,13,0) -> 4.297375784 | H122: =H26*VLOOKUP("Materials ",Escalators!$A$22:$P$24,14,0) -> 0 | I122: =I26*VLOOKUP("Contracts",Escalators!$A$22:$P$24,14,0) -> 82.94258702 | J122: =J26*VLOOKUP("Labour",Escalators!$A$22:$P$24,14,0) -> 37.5764262 | K122: =K26*VLOOKUP("Materials ",Escalators!$A$22:$P$24,15,0) -> 0 | L122: =L26*VLOOKUP("Contracts",Escalators!$A$22:$P$24,15,0) -> 70.80745623 | M122: =M26*VLOOKUP("Labour",Escalators!$A$22:$P$24,15,0) -> 31.30134148 | N122: =N26*VLOOKUP("Materials ",Escalators!$A$22:$P$24,16,0) -> 0 | O122: =O26*VLOOKUP("Contracts",Escalators!$A$22:$P$24,16,0) -> 0 | P122: =P26*VLOOKUP("Labour",Escalators!$A$22:$P$24,16,0) -> 0
A123: Smarter Networks - DMS Low Voltage Modelling | B123: =B27*VLOOKUP("Materials ",Escalators!$A$22:$P$24,12,0) -> 0 | C123: =C27*VLOOKUP("Contracts",Escalators!$A$22:$P$24,12,0) -> 0 | D123: =D27*VLOOKUP("Labour",Escalators!$A$22:$P$24,12,0) -> 0 | E123: =E27*VLOOKUP("Materials ",Escalators!$A$22:$P$24,13,0) -> 0 | F123: =F27*VLOOKUP("Contracts",Escalators!$A$22:$P$24,13,0) -> 0 | G123: =G27*VLOOKUP("Labour",Escalators!$A$22:$P$24,13,0) -> 0 | H123: =H27*VLOOKUP("Materials ",Escalators!$A$22:$P$24,14,0) -> 0 | I123: =I27*VLOOKUP("Contracts",Escalators!$A$22:$P$24,14,0) -> 0 | J123: =J27*VLOOKUP("Labour",Escalators!$A$22:$P$24,14,0) -> 0 | K123: =K27*VLOOKUP("Materials ",Escalators!$A$22:$P$24,15,0) -> 0 | L123: =L27*VLOOKUP("Contracts",Escalators!$A$22:$P$24,15,0) -> 63.32994469 | M123: =M27*VLOOKUP("Labour",Escalators!$A$22:$P$24,15,0) -> 53.99292946 | N123: =N27*VLOOKUP("Materials ",Escalators!$A$22:$P$24,16,0) -> 0 | O123: =O27*VLOOKUP("Contracts",Escalators!$A$22:$P$24,16,0) -> 80.85446713 | P123: =P27*VLOOKUP("Labour",Escalators!$A$22:$P$24,16,0) -> 67.95875462
A124: Smarter Networks - DMS Mobility Switching Integration | B124: =B28*VLOOKUP("Materials ",Escalators!$A$22:$P$24,12,0) -> 0 | C124: =C28*VLOOKUP("Contracts",Escalators!$A$22:$P$24,12,0) -> 0 | D124: =D28*VLOOKUP("Labour",Escalators!$A$22:$P$24,12,0) -> 0 | E124: =E28*VLOOKUP("Materials ",Escalators!$A$22:$P$24,13,0) -> 0 | F124: =F28*VLOOKUP("Contracts",Escalators!$A$22:$P$24,13,0) -> 22.6424905 | G124: =G28*VLOOKUP("Labour",Escalators!$A$22:$P$24,13,0) -> 23.92981382 | H124: =H28*VLOOKUP("Materials ",Escalators!$A$22:$P$24,14,0) -> 0 | I124: =I28*VLOOKUP("Contracts",Escalators!$A$22:$P$24,14,0) -> 0 | J124: =J28*VLOOKUP("Labour",Escalators!$A$22:$P$24,14,0) -> 0 | K124: =K28*VLOOKUP("Materials ",Escalators!$A$22:$P$24,15,0) -> 0 | L124: =L28*VLOOKUP("Contracts",Escalators!$A$22:$P$24,15,0) -> 0 | M124: =M28*VLOOKUP("Labour",Escalators!$A$22:$P$24,15,0) -> 0 | N124: =N28*VLOOKUP("Materials ",Escalators!$A$22:$P$24,16,0) -> 0 | O124: =O28*VLOOKUP("Contracts",Escalators!$A$22:$P$24,16,0) -> 0 | P124: =P28*VLOOKUP("Labour",Escalators!$A$22:$P$24,16,0) -> 0
A125: Smarter Networks - Lidar Data Management and Application | B125: =B29*VLOOKUP("Materials ",Escalators!$A$22:$P$24,12,0) -> 0 | C125: =C29*VLOOKUP("Contracts",Escalators!$A$22:$P$24,12,0) -> 0 | D125: =D29*VLOOKUP("Labour",Escalators!$A$22:$P$24,12,0) -> 0 | E125: =E29*VLOOKUP("Materials ",Escalators!$A$22:$P$24,13,0) -> 0 | F125: =F29*VLOOKUP("Contracts",Escalators!$A$22:$P$24,13,0) -> 16.66145527 | G125: =G29*VLOOKUP("Labour",Escalators!$A$22:$P$24,13,0) -> 7.969592425 | H125: =H29*VLOOKUP("Materials ",Escalators!$A$22:$P$24,14,0) -> 0 | I125: =I29*VLOOKUP("Contracts",Escalators!$A$22:$P$24,14,0) -> 43.09213921 | J125: =J29*VLOOKUP("Labour",Escalators!$A$22:$P$24,14,0) -> 19.51645969 | K125: =K29*VLOOKUP("Materials ",Escalators!$A$22:$P$24,15,0) -> 0 | L125: =L29*VLOOKUP("Contracts",Escalators!$A$22:$P$24,15,0) -> 29.22333592 | M125: =M29*VLOOKUP("Labour",Escalators!$A$22:$P$24,15,0) -> 12.92157213 | N125: =N29*VLOOKUP("Materials ",Escalators!$A$22:$P$24,16,0) -> 0 | O125: =O29*VLOOKUP("Contracts",Escalators!$A$22:$P$24,16,0) -> 0 | P125: =P29*VLOOKUP("Labour",Escalators!$A$22:$P$24,16,0) -> 0
A126: Smarter Networks - Outage Notification System Extension | B126: =B30*VLOOKUP("Materials ",Escalators!$A$22:$P$24,12,0) -> 0 | C126: =C30*VLOOKUP("Contracts",Escalators!$A$22:$P$24,12,0) -> 2.954143266 | D126: =D30*VLOOKUP("Labour",Escalators!$A$22:$P$24,12,0) -> 2.395245577 | E126: =E30*VLOOKUP("Materials ",Escalators!$A$22:$P$24,13,0) -> 0 | F126: =F30*VLOOKUP("Contracts",Escalators!$A$22:$P$24,13,0) -> 30.42139643 | G126: =G30*VLOOKUP("Labour",Escalators!$A$22:$P$24,13,0) -> 14.54821174 | H126: =H30*VLOOKUP("Materials ",Escalators!$A$22:$P$24,14,0) -> 0 | I126: =I30*VLOOKUP("Contracts",Escalators!$A$22:$P$24,14,0) -> 12.51963578 | J126: =J30*VLOOKUP("Labour",Escalators!$A$22:$P$24,14,0) -> 5.670085663 | K126: =K30*VLOOKUP("Materials ",Escalators!$A$22:$P$24,15,0) -> 0 | L126: =L30*VLOOKUP("Contracts",Escalators!$A$22:$P$24,15,0) -> 0 | M126: =M30*VLOOKUP("Labour",Escalators!$A$22:$P$24,15,0) -> 0 | N126: =N30*VLOOKUP("Materials ",Escalators!$A$22:$P$24,16,0) -> 0 | O126: =O30*VLOOKUP("Contracts",Escalators!$A$22:$P$24,16,0) -> 0 | P126: =P30*VLOOKUP("Labour",Escalators!$A$22:$P$24,16,0) -> 0
A127: Smarter Networks - Remote Diagnostics / Asset Condition Alerts | B127: =B31*VLOOKUP("Materials ",Escalators!$A$22:$P$24,12,0) -> 0 | C127: =C31*VLOOKUP("Contracts",Escalators!$A$22:$P$24,12,0) -> 0 | D127: =D31*VLOOKUP("Labour",Escalators!$A$22:$P$24,12,0) -> 0 | E127: =E31*VLOOKUP("Materials ",Escalators!$A$22:$P$24,13,0) -> 0 | F127: =F31*VLOOKUP("Contracts",Escalators!$A$22:$P$24,13,0) -> 0 | G127: =G31*VLOOKUP("Labour",Escalators!$A$22:$P$24,13,0) -> 0 | H127: =H31*VLOOKUP("Materials ",Escalators!$A$22:$P$24,14,0) -> 0 | I127: =I31*VLOOKUP("Contracts",Escalators!$A$22:$P$24,14,0) -> 0 | J127: =J31*VLOOKUP("Labour",Escalators!$A$22:$P$24,14,0) -> 0 | K127: =K31*VLOOKUP("Materials ",Escalators!$A$22:$P$24,15,0) -> 0 | L127: =L31*VLOOKUP("Contracts",Escalators!$A$22:$P$24,15,0) -> 39.40953787 | M127: =M31*VLOOKUP("Labour",Escalators!$A$22:$P$24,15,0) -> 37.43679585 | N127: =N31*VLOOKUP("Materials ",Escalators!$A$22:$P$24,16,0) -> 0 | O127: =O31*VLOOKUP("Contracts",Escalators!$A$22:$P$24,16,0) -> 50.31485816 | P127: =P31*VLOOKUP("Labour",Escalators!$A$22:$P$24,16,0) -> 47.06947487
A128: Smarter Networks - Smart Network Advanced Analytics | B128: =B32*VLOOKUP("Materials ",Escalators!$A$22:$P$24,12,0) -> 0 | C128: =C32*VLOOKUP("Contracts",Escalators!$A$22:$P$24,12,0) -> 0 | D128: =D32*VLOOKUP("Labour",Escalators!$A$22:$P$24,12,0) -> 0 | E128: =E32*VLOOKUP("Materials ",Escalators!$A$22:$P$24,13,0) -> 0 | F128: =F32*VLOOKUP("Contracts",Escalators!$A$22:$P$24,13,0) -> 11.25004245 | G128: =G32*VLOOKUP("Labour",Escalators!$A$22:$P$24,13,0) -> 5.54979518 | H128: =H32*VLOOKUP("Materials ",Escalators!$A$22:$P$24,14,0) -> 0 | I128: =I32*VLOOKUP("Contracts",Escalators!$A$22:$P$24,14,0) -> 18.54890234 | J128: =J32*VLOOKUP("Labour",Escalators!$A$22:$P$24,14,0) -> 8.67448654 | K128: =K32*VLOOKUP("Materials ",Escalators!$A$22:$P$24,15,0) -> 0 | L128: =L32*VLOOKUP("Contracts",Escalators!$A$22:$P$24,15,0) -> 25.32244023 | M128: =M32*VLOOKUP("Labour",Escalators!$A$22:$P$24,15,0) -> 11.5559901 | N128: =N32*VLOOKUP("Materials ",Escalators!$A$22:$P$24,16,0) -> 0 | O128: =O32*VLOOKUP("Contracts",Escalators!$A$22:$P$24,16,0) -> 32.32960997 | P128: =P32*VLOOKUP("Labour",Escalators!$A$22:$P$24,16,0) -> 14.48272201
A129: Smarter Networks - Smart Network Demand Management | B129: =B33*VLOOKUP("Materials ",Escalators!$A$22:$P$24,12,0) -> 0 | C129: =C33*VLOOKUP("Contracts",Escalators!$A$22:$P$24,12,0) -> 5.049396731 | D129: =D33*VLOOKUP("Labour",Escalators!$A$22:$P$24,12,0) -> 7.553819886 | E129: =E33*VLOOKUP("Materials ",Escalators!$A$22:$P$24,13,0) -> 0 | F129: =F33*VLOOKUP("Contracts",Escalators!$A$22:$P$24,13,0) -> 16.28764057 | G129: =G33*VLOOKUP("Labour",Escalators!$A$22:$P$24,13,0) -> 14.04054688 | H129: =H33*VLOOKUP("Materials ",Escalators!$A$22:$P$24,14,0) -> 0 | I129: =I33*VLOOKUP("Contracts",Escalators!$A$22:$P$24,14,0) -> 25.57023825 | J129: =J33*VLOOKUP("Labour",Escalators!$A$22:$P$24,14,0) -> 20.86595229 | K129: =K33*VLOOKUP("Materials ",Escalators!$A$22:$P$24,15,0) -> 0 | L129: =L33*VLOOKUP("Contracts",Escalators!$A$22:$P$24,15,0) -> 33.87770535 | M129: =M33*VLOOKUP("Labour",Escalators!$A$22:$P$24,15,0) -> 25.01647029 | N129: =N33*VLOOKUP("Materials ",Escalators!$A$22:$P$24,16,0) -> 0 | O129: =O33*VLOOKUP("Contracts",Escalators!$A$22:$P$24,16,0) -> 47.34370003 | P129: =P33*VLOOKUP("Labour",Escalators!$A$22:$P$24,16,0) -> 32.9281997
A130: Smarter Networks - Storage Integration to Network Management | B130: =B34*VLOOKUP("Materials ",Escalators!$A$22:$P$24,12,0) -> 0 | C130: =C34*VLOOKUP("Contracts",Escalators!$A$22:$P$24,12,0) -> 3.326146492 | D130: =D34*VLOOKUP("Labour",Escalators!$A$22:$P$24,12,0) -> 3.544839452 | E130: =E34*VLOOKUP("Materials ",Escalators!$A$22:$P$24,13,0) -> 0 | F130: =F34*VLOOKUP("Contracts",Escalators!$A$22:$P$24,13,0) -> 10.09299694 | G130: =G34*VLOOKUP("Labour",Escalators!$A$22:$P$24,13,0) -> 6.480983822 | H130: =H34*VLOOKUP("Materials ",Escalators!$A$22:$P$24,14,0) -> 0 | I130: =I34*VLOOKUP("Contracts",Escalators!$A$22:$P$24,14,0) -> 43.73488837 | J130: =J34*VLOOKUP("Labour",Escalators!$A$22:$P$24,14,0) -> 30.29801654 | K130: =K34*VLOOKUP("Materials ",Escalators!$A$22:$P$24,15,0) -> 0 | L130: =L34*VLOOKUP("Contracts",Escalators!$A$22:$P$24,15,0) -> 29.94819674 | M130: =M34*VLOOKUP("Labour",Escalators!$A$22:$P$24,15,0) -> 14.19608848 | N130: =N34*VLOOKUP("Materials ",Escalators!$A$22:$P$24,16,0) -> 0 | O130: =O34*VLOOKUP("Contracts",Escalators!$A$22:$P$24,16,0) -> 38.2353956 | P130: =P34*VLOOKUP("Labour",Escalators!$A$22:$P$24,16,0) -> 17.78050021
B131: =SUM(B104:B130) -> 0 | C131: =SUM(C104:C130) -> 176.1038472 | D131: 133.3222883 | E131: 0 | F131: 591.2372276 | G131: 279.5460171 | H131: 0 | I131: 687.6380027 | J131: 358.4328347 | K131: 0 | L131: 953.2852748 | M131: 531.2912345 | N131: 0 | O131: 920.8611261 | P131: 492.526766
A133: AMI | B133: =SUM(B104) -> 0 | C133: 0 | D133: 0 | E133: 0 | F133: 0 | G133: 0 | H133: 0 | I133: 0 | J133: 0 | K133: 0 | L133: 0 | M133: 0 | N133: 0 | O133: 0 | P133: 0
A134: Compliance | B134: =SUM(B105:B106) -> 0 | C134: 37.2030182 | D134: 37.61931324 | E134: 0 | F134: 86.83363888 | G134: 67.17635692 | H134: 0 | I134: 69.64511971 | J134: 60.16008363 | K134: 0 | L134: 201.1238718 | M134: 161.2479594 | N134: 0 | O134: 127.9231148 | P134: 92.73091776
A135: Currency | B135: =SUM(B107:B110) -> 0 | C135: 36.57049943 | D135: 25.05523461 | E135: 0 | F135: 95.21747239 | G135: 43.27600652 | H135: 0 | I135: 284.060241 | J135: 118.994678 | K135: 0 | L135: 283.7228518 | M135: 111.9507755 | N135: 0 | O135: 386.736062 | P135: 152.6006274
A136: Customer Engagement | B136: =SUM(B111:B112) -> 0 | C136: 73.35596422 | D136: 45.60879144 | E136: 0 | F136: 226.2549425 | G136: 68.22178782 | H136: 0 | I136: 8.982903159 | J136: 7.910717614 | K136: 0 | L136: 51.22814398 | M136: 16.40278507 | N136: 0 | O136: 15.57235306 | P136: 6.751327909
A137: Device Replacement | B137: =SUM(B113) -> 0 | C137: 0 | D137: 0 | E137: 0 | F137: 0 | G137: 0 | H137: 0 | I137: 0 | J137: 0 | K137: 0 | L137: 0 | M137: 0 | N137: 0 | O137: 0 | P137: 0
A138: Infrastructure | B138: =SUM(B114:B119) -> 0 | C138: 5.919318138 | D138: 2.645784632 | E138: 0 | F138: 25.61190697 | G138: 8.168972268 | H138: 0 | I138: 21.95859184 | J138: 12.7229345 | K138: 0 | L138: 10.2884404 | M138: 5.155989609 | N138: 0 | O138: 15.97049016 | P138: 8.94716557
A139: Security | B139: =SUM(B120) -> 0 | C139: 7.350903681 | D139: 3.357773499 | E139: 0 | F139: 25.38225787 | G139: 5.89364799 | H139: 0 | I139: 44.03449761 | J139: 11.00142587 | K139: 0 | L139: 70.56938201 | M139: 16.74171729 | N139: 0 | O139: 77.23887117 | P139: 17.95739724
A140: Smarter Networks | B140: =SUM(B121:B130) -> 0 | C140: 15.70414354 | D140: 19.03539085 | E140: 0 | F140: 131.9370089 | G140: 86.80924559 | H140: 0 | I140: 258.9566494 | J140: 147.6429951 | K140: 0 | L140: 336.3525849 | M140: 219.7920076 | N140: 0 | O140: 297.4202349 | P140: 213.5393301
B141: =SUM(B133:B140) -> 0 | C141: =SUM(C133:C140) -> 176.1038472 | D141: =SUM(D133:D140) -> 133.3222883 | E141: =SUM(E133:E140) -> 0 | F141: =SUM(F133:F140) -> 591.2372276 | G141: =SUM(G133:G140) -> 279.5460171 | H141: =SUM(H133:H140) -> 0 | I141: =SUM(I133:I140) -> 687.6380027 | J141: =SUM(J133:J140) -> 358.4328347 | K141: =SUM(K133:K140) -> 0 | L141: =SUM(L133:L140) -> 953.2852748 | M141: =SUM(M133:M140) -> 531.2912345 | N141: =SUM(N133:N140) -> 0 | O141: =SUM(O133:O140) -> 920.8611261 | P141: =SUM(P133:P140) -> 492.526766
A144: Recurrent | B144: =B48*VLOOKUP("Materials ",Escalators!$A$22:$P$24,12,0) -> 0 | C144: =C48*VLOOKUP("Contracts",Escalators!$A$22:$P$24,12,0) -> 87.27149439 | D144: =D48*VLOOKUP("Labour",Escalators!$A$22:$P$24,12,0) -> 68.67956698 | E144: =E48*VLOOKUP("Materials ",Escalators!$A$22:$P$24,13,0) -> 0 | F144: =F48*VLOOKUP("Contracts",Escalators!$A$22:$P$24,13,0) -> 394.0583834 | G144: =G48*VLOOKUP("Labour",Escalators!$A$22:$P$24,13,0) -> 154.9626205 | H144: =H48*VLOOKUP("Materials ",Escalators!$A$22:$P$24,14,0) -> 0 | I144: =I48*VLOOKUP("Contracts",Escalators!$A$22:$P$24,14,0) -> 584.6163049 | J144: =J48*VLOOKUP("Labour",Escalators!$A$22:$P$24,14,0) -> 277.673305 | K144: =K48*VLOOKUP("Materials ",Escalators!$A$22:$P$24,15,0) -> 0 | L144: =L48*VLOOKUP("Contracts",Escalators!$A$22:$P$24,15,0) -> 709.1368775 | M144: =M48*VLOOKUP("Labour",Escalators!$A$22:$P$24,15,0) -> 359.414148 | N144: =N48*VLOOKUP("Materials ",Escalators!$A$22:$P$24,16,0) -> 0 | O144: =O48*VLOOKUP("Contracts",Escalators!$A$22:$P$24,16,0) -> 833.1330397 | P144: =P48*VLOOKUP("Labour",Escalators!$A$22:$P$24,16,0) -> 416.9090245
A145: Non-Recurrent | B145: =B49*VLOOKUP("Materials ",Escalators!$A$22:$P$24,12,0) -> 0 | C145: =C49*VLOOKUP("Contracts",Escalators!$A$22:$P$24,12,0) -> 88.83235282 | D145: =D49*VLOOKUP("Labour",Escalators!$A$22:$P$24,12,0) -> 64.6427213 | E145: =E49*VLOOKUP("Materials ",Escalators!$A$22:$P$24,13,0) -> 0 | F145: =F49*VLOOKUP("Contracts",Escalators!$A$22:$P$24,13,0) -> 197.1788441 | G145: =G49*VLOOKUP("Labour",Escalators!$A$22:$P$24,13,0) -> 124.5833966 | H145: =H49*VLOOKUP("Materials ",Escalators!$A$22:$P$24,14,0) -> 0 | I145: =I49*VLOOKUP("Contracts",Escalators!$A$22:$P$24,14,0) -> 103.0216978 | J145: =J49*VLOOKUP("Labour",Escalators!$A$22:$P$24,14,0) -> 80.7595297 | K145: =K49*VLOOKUP("Materials ",Escalators!$A$22:$P$24,15,0) -> 0 | L145: =L49*VLOOKUP("Contracts",Escalators!$A$22:$P$24,15,0) -> 244.1483973 | M145: =M49*VLOOKUP("Labour",Escalators!$A$22:$P$24,15,0) -> 171.8770864 | N145: =N49*VLOOKUP("Materials ",Escalators!$A$22:$P$24,16,0) -> 0 | O145: =O49*VLOOKUP("Contracts",Escalators!$A$22:$P$24,16,0) -> 87.72808636 | P145: =P49*VLOOKUP("Labour",Escalators!$A$22:$P$24,16,0) -> 75.61774155
A146: Device Replacement | B146: =B50*VLOOKUP("Materials ",Escalators!$A$22:$P$24,12,0) -> 0 | C146: =C50*VLOOKUP("Contracts",Escalators!$A$22:$P$24,12,0) -> 0 | D146: =D50*VLOOKUP("Labour",Escalators!$A$22:$P$24,12,0) -> 0 | E146: =E50*VLOOKUP("Materials ",Escalators!$A$22:$P$24,13,0) -> 0 | F146: =F50*VLOOKUP("Contracts",Escalators!$A$22:$P$24,13,0) -> 0 | G146: =G50*VLOOKUP("Labour",Escalators!$A$22:$P$24,13,0) -> 0 | H146: =H50*VLOOKUP("Materials ",Escalators!$A$22:$P$24,14,0) -> 0 | I146: =I50*VLOOKUP("Contracts",Escalators!$A$22:$P$24,14,0) -> 0 | J146: =J50*VLOOKUP("Labour",Escalators!$A$22:$P$24,14,0) -> 0 | K146: =K50*VLOOKUP("Materials ",Escalators!$A$22:$P$24,15,0) -> 0 | L146: =L50*VLOOKUP("Contracts",Escalators!$A$22:$P$24,15,0) -> 0 | M146: =M50*VLOOKUP("Labour",Escalators!$A$22:$P$24,15,0) -> 0 | N146: =N50*VLOOKUP("Materials ",Escalators!$A$22:$P$24,16,0) -> 0 | O146: =O50*VLOOKUP("Contracts",Escalators!$A$22:$P$24,16,0) -> 0 | P146: =P50*VLOOKUP("Labour",Escalators!$A$22:$P$24,16,0) -> 0
B147: =SUM(B144:B146)-B131 -> 0 | C147: =SUM(C144:C145)-C131 -> 0 | D147: =SUM(D144:D145)-D131 -> 0 | E147: =SUM(E144:E145)-E131 -> 0 | F147: 0 | G147: 0 | H147: 0 | I147: 0 | J147: 0 | K147: 0 | L147: 0 | M147: 0 | N147: 0 | O147: 0 | P147: 0
A150: IT Category | B150: 2016 PAL AMI (Excl margins) Escalation | E150: 2017 PAL AMI (Excl margins) Escalation | H150: 2018 PAL AMI (Excl margins) Escalation | K150: 2019 PAL AMI (Excl margins) Escalation | N150: 2020 PAL AMI (Excl margins) Escalation
B151: Material | C151: Contract | D151: Labour | E151: Material | F151: Contract | G151: Labour | H151: Material | I151: Contract | J151: Labour | K151: Material | L151: Contract | M151: Labour | N151: Material | O151: Contract | P151: Labour
A152: =A55 -> AMI | B152: =B55*VLOOKUP("Materials ",Escalators!$A$22:$P$24,12,0) -> 0 | C152: =C55*VLOOKUP("Contracts",Escalators!$A$22:$P$24,12,0) -> 3.808944052 | D152: =D55*VLOOKUP("Labour",Escalators!$A$22:$P$24,12,0) -> 3.193803695 | E152: =E55*VLOOKUP("Materials ",Escalators!$A$22:$P$24,13,0) -> 0 | F152: =F55*VLOOKUP("Contracts",Escalators!$A$22:$P$24,13,0) -> 11.73106918 | G152: =G55*VLOOKUP("Labour",Escalators!$A$22:$P$24,13,0) -> 3.865505252 | H152: =H55*VLOOKUP("Materials ",Escalators!$A$22:$P$24,14,0) -> 0 | I152: =I55*VLOOKUP("Contracts",Escalators!$A$22:$P$24,14,0) -> 17.4341869 | J152: =J55*VLOOKUP("Labour",Escalators!$A$22:$P$24,14,0) -> 7.444938886 | K152: =K55*VLOOKUP("Materials ",Escalators!$A$22:$P$24,15,0) -> 0 | L152: =L55*VLOOKUP("Contracts",Escalators!$A$22:$P$24,15,0) -> 14.4174815 | M152: =M55*VLOOKUP("Labour",Escalators!$A$22:$P$24,15,0) -> 5.991408111 | N152: =N55*VLOOKUP("Materials ",Escalators!$A$22:$P$24,16,0) -> 0 | O152: =O55*VLOOKUP("Contracts",Escalators!$A$22:$P$24,16,0) -> 59.32829193 | P152: =P55*VLOOKUP("Labour",Escalators!$A$22:$P$24,16,0) -> 18.58555505
A153: Compliance | B153: =B56*VLOOKUP("Materials ",Escalators!$A$22:$P$24,12,0) -> 0 | C153: =C56*VLOOKUP("Contracts",Escalators!$A$22:$P$24,12,0) -> 0 | D153: =D56*VLOOKUP("Labour",Escalators!$A$22:$P$24,12,0) -> 0 | E153: =E56*VLOOKUP("Materials ",Escalators!$A$22:$P$24,13,0) -> 0 | F153: =F56*VLOOKUP("Contracts",Escalators!$A$22:$P$24,13,0) -> 0 | G153: =G56*VLOOKUP("Labour",Escalators!$A$22:$P$24,13,0) -> 0 | H153: =H56*VLOOKUP("Materials ",Escalators!$A$22:$P$24,14,0) -> 0 | I153: =I56*VLOOKUP("Contracts",Escalators!$A$22:$P$24,14,0) -> 0 | J153: =J56*VLOOKUP("Labour",Escalators!$A$22:$P$24,14,0) -> 0 | K153: =K56*VLOOKUP("Materials ",Escalators!$A$22:$P$24,15,0) -> 0 | L153: =L56*VLOOKUP("Contracts",Escalators!$A$22:$P$24,15,0) -> 0 | M153: =M56*VLOOKUP("Labour",Escalators!$A$22:$P$24,15,0) -> 0 | N153: =N56*VLOOKUP("Materials ",Escalators!$A$22:$P$24,16,0) -> 0 | O153: =O56*VLOOKUP("Contracts",Escalators!$A$22:$P$24,16,0) -> 0 | P153: =P56*VLOOKUP("Labour",Escalators!$A$22:$P$24,16,0) -> 0
A154: Compliance - RIN Reporting | B154: =B57*VLOOKUP("Materials ",Escalators!$A$22:$P$24,12,0) -> 0 | C154: =C57*VLOOKUP("Contracts",Escalators!$A$22:$P$24,12,0) -> 0 | D154: =D57*VLOOKUP("Labour",Escalators!$A$22:$P$24,12,0) -> 0 | E154: =E57*VLOOKUP("Materials ",Escalators!$A$22:$P$24,13,0) -> 0 | F154: =F57*VLOOKUP("Contracts",Escalators!$A$22:$P$24,13,0) -> 0 | G154: =G57*VLOOKUP("Labour",Escalators!$A$22:$P$24,13,0) -> 0 | H154: =H57*VLOOKUP("Materials ",Escalators!$A$22:$P$24,14,0) -> 0 | I154: =I57*VLOOKUP("Contracts",Escalators!$A$22:$P$24,14,0) -> 0 | J154: =J57*VLOOKUP("Labour",Escalators!$A$22:$P$24,14,0) -> 0 | K154: =K57*VLOOKUP("Materials ",Escalators!$A$22:$P$24,15,0) -> 0 | L154: =L57*VLOOKUP("Contracts",Escalators!$A$22:$P$24,15,0) -> 0 | M154: =M57*VLOOKUP("Labour",Escalators!$A$22:$P$24,15,0) -> 0 | N154: =N57*VLOOKUP("Materials ",Escalators!$A$22:$P$24,16,0) -> 0 | O154: =O57*VLOOKUP("Contracts",Escalators!$A$22:$P$24,16,0) -> 0 | P154: =P57*VLOOKUP("Labour",Escalators!$A$22:$P$24,16,0) -> 0
A155: Currency | B155: =B58*VLOOKUP("Materials ",Escalators!$A$22:$P$24,12,0) -> 0 | C155: =C58*VLOOKUP("Contracts",Escalators!$A$22:$P$24,12,0) -> 0 | D155: =D58*VLOOKUP("Labour",Escalators!$A$22:$P$24,12,0) -> 0 | E155: =E58*VLOOKUP("Materials ",Escalators!$A$22:$P$24,13,0) -> 0 | F155: =F58*VLOOKUP("Contracts",Escalators!$A$22:$P$24,13,0) -> 0 | G155: =G58*VLOOKUP("Labour",Escalators!$A$22:$P$24,13,0) -> 0 | H155: =H58*VLOOKUP("Materials ",Escalators!$A$22:$P$24,14,0) -> 0 | I155: =I58*VLOOKUP("Contracts",Escalators!$A$22:$P$24,14,0) -> 0 | J155: =J58*VLOOKUP("Labour",Escalators!$A$22:$P$24,14,0) -> 0 | K155: =K58*VLOOKUP("Materials ",Escalators!$A$22:$P$24,15,0) -> 0 | L155: =L58*VLOOKUP("Contracts",Escalators!$A$22:$P$24,15,0) -> 0 | M155: =M58*VLOOKUP("Labour",Escalators!$A$22:$P$24,15,0) -> 0 | N155: =N58*VLOOKUP("Materials ",Escalators!$A$22:$P$24,16,0) -> 0 | O155: =O58*VLOOKUP("Contracts",Escalators!$A$22:$P$24,16,0) -> 0 | P155: =P58*VLOOKUP("Labour",Escalators!$A$22:$P$24,16,0) -> 0
A156: Currency - IEE / MTS Upgrade | B156: =B59*VLOOKUP("Materials ",Escalators!$A$22:$P$24,12,0) -> 0 | C156: =C59*VLOOKUP("Contracts",Escalators!$A$22:$P$24,12,0) -> 0 | D156: =D59*VLOOKUP("Labour",Escalators!$A$22:$P$24,12,0) -> 0 | E156: =E59*VLOOKUP("Materials ",Escalators!$A$22:$P$24,13,0) -> 0 | F156: =F59*VLOOKUP("Contracts",Escalators!$A$22:$P$24,13,0) -> 0 | G156: =G59*VLOOKUP("Labour",Escalators!$A$22:$P$24,13,0) -> 0 | H156: =H59*VLOOKUP("Materials ",Escalators!$A$22:$P$24,14,0) -> 0 | I156: =I59*VLOOKUP("Contracts",Escalators!$A$22:$P$24,14,0) -> 0 | J156: =J59*VLOOKUP("Labour",Escalators!$A$22:$P$24,14,0) -> 0 | K156: =K59*VLOOKUP("Materials ",Escalators!$A$22:$P$24,15,0) -> 0 | L156: =L59*VLOOKUP("Contracts",Escalators!$A$22:$P$24,15,0) -> 0 | M156: =M59*VLOOKUP("Labour",Escalators!$A$22:$P$24,15,0) -> 0 | N156: =N59*VLOOKUP("Materials ",Escalators!$A$22:$P$24,16,0) -> 0 | O156: =O59*VLOOKUP("Contracts",Escalators!$A$22:$P$24,16,0) -> 0 | P156: =P59*VLOOKUP("Labour",Escalators!$A$22:$P$24,16,0) -> 0
A157: Currency - Refresh Telephony Solution | B157: =B60*VLOOKUP("Materials ",Escalators!$A$22:$P$24,12,0) -> 0 | C157: =C60*VLOOKUP("Contracts",Escalators!$A$22:$P$24,12,0) -> 0 | D157: =D60*VLOOKUP("Labour",Escalators!$A$22:$P$24,12,0) -> 0 | E157: =E60*VLOOKUP("Materials ",Escalators!$A$22:$P$24,13,0) -> 0 | F157: =F60*VLOOKUP("Contracts",Escalators!$A$22:$P$24,13,0) -> 0 | G157: =G60*VLOOKUP("Labour",Escalators!$A$22:$P$24,13,0) -> 0 | H157: =H60*VLOOKUP("Materials ",Escalators!$A$22:$P$24,14,0) -> 0 | I157: =I60*VLOOKUP("Contracts",Escalators!$A$22:$P$24,14,0) -> 0 | J157: =J60*VLOOKUP("Labour",Escalators!$A$22:$P$24,14,0) -> 0 | K157: =K60*VLOOKUP("Materials ",Escalators!$A$22:$P$24,15,0) -> 0 | L157: =L60*VLOOKUP("Contracts",Escalators!$A$22:$P$24,15,0) -> 0 | M157: =M60*VLOOKUP("Labour",Escalators!$A$22:$P$24,15,0) -> 0 | N157: =N60*VLOOKUP("Materials ",Escalators!$A$22:$P$24,16,0) -> 0 | O157: =O60*VLOOKUP("Contracts",Escalators!$A$22:$P$24,16,0) -> 0 | P157: =P60*VLOOKUP("Labour",Escalators!$A$22:$P$24,16,0) -> 0
A158: Currency - USB Upgrade | B158: =B61*VLOOKUP("Materials ",Escalators!$A$22:$P$24,12,0) -> 0 | C158: =C61*VLOOKUP("Contracts",Escalators!$A$22:$P$24,12,0) -> 0 | D158: =D61*VLOOKUP("Labour",Escalators!$A$22:$P$24,12,0) -> 0 | E158: =E61*VLOOKUP("Materials ",Escalators!$A$22:$P$24,13,0) -> 0 | F158: =F61*VLOOKUP("Contracts",Escalators!$A$22:$P$24,13,0) -> 0 | G158: =G61*VLOOKUP("Labour",Escalators!$A$22:$P$24,13,0) -> 0 | H158: =H61*VLOOKUP("Materials ",Escalators!$A$22:$P$24,14,0) -> 0 | I158: =I61*VLOOKUP("Contracts",Escalators!$A$22:$P$24,14,0) -> 0 | J158: =J61*VLOOKUP("Labour",Escalators!$A$22:$P$24,14,0) -> 0 | K158: =K61*VLOOKUP("Materials ",Escalators!$A$22:$P$24,15,0) -> 0 | L158: =L61*VLOOKUP("Contracts",Escalators!$A$22:$P$24,15,0) -> 0 | M158: =M61*VLOOKUP("Labour",Escalators!$A$22:$P$24,15,0) -> 0 | N158: =N61*VLOOKUP("Materials ",Escalators!$A$22:$P$24,16,0) -> 0 | O158: =O61*VLOOKUP("Contracts",Escalators!$A$22:$P$24,16,0) -> 0 | P158: =P61*VLOOKUP("Labour",Escalators!$A$22:$P$24,16,0) -> 0
A159: Customer Engagement | B159: =B62*VLOOKUP("Materials ",Escalators!$A$22:$P$24,12,0) -> 0 | C159: =C62*VLOOKUP("Contracts",Escalators!$A$22:$P$24,12,0) -> 0 | D159: =D62*VLOOKUP("Labour",Escalators!$A$22:$P$24,12,0) -> 0 | E159: =E62*VLOOKUP("Materials ",Escalators!$A$22:$P$24,13,0) -> 0 | F159: =F62*VLOOKUP("Contracts",Escalators!$A$22:$P$24,13,0) -> 0 | G159: =G62*VLOOKUP("Labour",Escalators!$A$22:$P$24,13,0) -> 0 | H159: =H62*VLOOKUP("Materials ",Escalators!$A$22:$P$24,14,0) -> 0 | I159: =I62*VLOOKUP("Contracts",Escalators!$A$22:$P$24,14,0) -> 0 | J159: =J62*VLOOKUP("Labour",Escalators!$A$22:$P$24,14,0) -> 0 | K159: =K62*VLOOKUP("Materials ",Escalators!$A$22:$P$24,15,0) -> 0 | L159: =L62*VLOOKUP("Contracts",Escalators!$A$22:$P$24,15,0) -> 0 | M159: =M62*VLOOKUP("Labour",Escalators!$A$22:$P$24,15,0) -> 0 | N159: =N62*VLOOKUP("Materials ",Escalators!$A$22:$P$24,16,0) -> 0 | O159: =O62*VLOOKUP("Contracts",Escalators!$A$22:$P$24,16,0) -> 0 | P159: =P62*VLOOKUP("Labour",Escalators!$A$22:$P$24,16,0) -> 0
A160: Customer Engagement - Billing / CRM Implementation | B160: =B63*VLOOKUP("Materials ",Escalators!$A$22:$P$24,12,0) -> 0 | C160: =C63*VLOOKUP("Contracts",Escalators!$A$22:$P$24,12,0) -> 0 | D160: =D63*VLOOKUP("Labour",Escalators!$A$22:$P$24,12,0) -> 0 | E160: =E63*VLOOKUP("Materials ",Escalators!$A$22:$P$24,13,0) -> 0 | F160: =F63*VLOOKUP("Contracts",Escalators!$A$22:$P$24,13,0) -> 0 | G160: =G63*VLOOKUP("Labour",Escalators!$A$22:$P$24,13,0) -> 0 | H160: =H63*VLOOKUP("Materials ",Escalators!$A$22:$P$24,14,0) -> 0 | I160: =I63*VLOOKUP("Contracts",Escalators!$A$22:$P$24,14,0) -> 0 | J160: =J63*VLOOKUP("Labour",Escalators!$A$22:$P$24,14,0) -> 0 | K160: =K63*VLOOKUP("Materials ",Escalators!$A$22:$P$24,15,0) -> 0 | L160: =L63*VLOOKUP("Contracts",Escalators!$A$22:$P$24,15,0) -> 0 | M160: =M63*VLOOKUP("Labour",Escalators!$A$22:$P$24,15,0) -> 0 | N160: =N63*VLOOKUP("Materials ",Escalators!$A$22:$P$24,16,0) -> 0 | O160: =O63*VLOOKUP("Contracts",Escalators!$A$22:$P$24,16,0) -> 0 | P160: =P63*VLOOKUP("Labour",Escalators!$A$22:$P$24,16,0) -> 0
A161: Device Replacement | B161: =B64*VLOOKUP("Materials ",Escalators!$A$22:$P$24,12,0) -> 0 | C161: =C64*VLOOKUP("Contracts",Escalators!$A$22:$P$24,12,0) -> 0 | D161: =D64*VLOOKUP("Labour",Escalators!$A$22:$P$24,12,0) -> 0 | E161: =E64*VLOOKUP("Materials ",Escalators!$A$22:$P$24,13,0) -> 0 | F161: =F64*VLOOKUP("Contracts",Escalators!$A$22:$P$24,13,0) -> 0 | G161: =G64*VLOOKUP("Labour",Escalators!$A$22:$P$24,13,0) -> 0 | H161: =H64*VLOOKUP("Materials ",Escalators!$A$22:$P$24,14,0) -> 0 | I161: =I64*VLOOKUP("Contracts",Escalators!$A$22:$P$24,14,0) -> 0 | J161: =J64*VLOOKUP("Labour",Escalators!$A$22:$P$24,14,0) -> 0 | K161: =K64*VLOOKUP("Materials ",Escalators!$A$22:$P$24,15,0) -> 0 | L161: =L64*VLOOKUP("Contracts",Escalators!$A$22:$P$24,15,0) -> 0 | M161: =M64*VLOOKUP("Labour",Escalators!$A$22:$P$24,15,0) -> 0 | N161: =N64*VLOOKUP("Materials ",Escalators!$A$22:$P$24,16,0) -> 0 | O161: =O64*VLOOKUP("Contracts",Escalators!$A$22:$P$24,16,0) -> 0 | P161: =P64*VLOOKUP("Labour",Escalators!$A$22:$P$24,16,0) -> 0
A162: Infrastructure | B162: =B65*VLOOKUP("Materials ",Escalators!$A$22:$P$24,12,0) -> 0 | C162: =C65*VLOOKUP("Contracts",Escalators!$A$22:$P$24,12,0) -> 0 | D162: =D65*VLOOKUP("Labour",Escalators!$A$22:$P$24,12,0) -> 0 | E162: =E65*VLOOKUP("Materials ",Escalators!$A$22:$P$24,13,0) -> 0 | F162: =F65*VLOOKUP("Contracts",Escalators!$A$22:$P$24,13,0) -> 0 | G162: =G65*VLOOKUP("Labour",Escalators!$A$22:$P$24,13,0) -> 0 | H162: =H65*VLOOKUP("Materials ",Escalators!$A$22:$P$24,14,0) -> 0 | I162: =I65*VLOOKUP("Contracts",Escalators!$A$22:$P$24,14,0) -> 0 | J162: =J65*VLOOKUP("Labour",Escalators!$A$22:$P$24,14,0) -> 0 | K162: =K65*VLOOKUP("Materials ",Escalators!$A$22:$P$24,15,0) -> 0 | L162: =L65*VLOOKUP("Contracts",Escalators!$A$22:$P$24,15,0) -> 0 | M162: =M65*VLOOKUP("Labour",Escalators!$A$22:$P$24,15,0) -> 0 | N162: =N65*VLOOKUP("Materials ",Escalators!$A$22:$P$24,16,0) -> 0 | O162: =O65*VLOOKUP("Contracts",Escalators!$A$22:$P$24,16,0) -> 0 | P162: =P65*VLOOKUP("Labour",Escalators!$A$22:$P$24,16,0) -> 0
A163: Infrastructure - Data Warehouse Hardware Refresh | B163: =B66*VLOOKUP("Materials ",Escalators!$A$22:$P$24,12,0) -> 0 | C163: =C66*VLOOKUP("Contracts",Escalators!$A$22:$P$24,12,0) -> 0 | D163: =D66*VLOOKUP("Labour",Escalators!$A$22:$P$24,12,0) -> 0 | E163: =E66*VLOOKUP("Materials ",Escalators!$A$22:$P$24,13,0) -> 0 | F163: =F66*VLOOKUP("Contracts",Escalators!$A$22:$P$24,13,0) -> 0 | G163: =G66*VLOOKUP("Labour",Escalators!$A$22:$P$24,13,0) -> 0 | H163: =H66*VLOOKUP("Materials ",Escalators!$A$22:$P$24,14,0) -> 0 | I163: =I66*VLOOKUP("Contracts",Escalators!$A$22:$P$24,14,0) -> 0 | J163: =J66*VLOOKUP("Labour",Escalators!$A$22:$P$24,14,0) -> 0 | K163: =K66*VLOOKUP("Materials ",Escalators!$A$22:$P$24,15,0) -> 0 | L163: =L66*VLOOKUP("Contracts",Escalators!$A$22:$P$24,15,0) -> 0 | M163: =M66*VLOOKUP("Labour",Escalators!$A$22:$P$24,15,0) -> 0 | N163: =N66*VLOOKUP("Materials ",Escalators!$A$22:$P$24,16,0) -> 0 | O163: =O66*VLOOKUP("Contracts",Escalators!$A$22:$P$24,16,0) -> 0 | P163: =P66*VLOOKUP("Labour",Escalators!$A$22:$P$24,16,0) -> 0
A164: Infrastructure - Network Infrastructure Refresh | B164: =B67*VLOOKUP("Materials ",Escalators!$A$22:$P$24,12,0) -> 0 | C164: =C67*VLOOKUP("Contracts",Escalators!$A$22:$P$24,12,0) -> 0 | D164: =D67*VLOOKUP("Labour",Escalators!$A$22:$P$24,12,0) -> 0 | E164: =E67*VLOOKUP("Materials ",Escalators!$A$22:$P$24,13,0) -> 0 | F164: =F67*VLOOKUP("Contracts",Escalators!$A$22:$P$24,13,0) -> 0 | G164: =G67*VLOOKUP("Labour",Escalators!$A$22:$P$24,13,0) -> 0 | H164: =H67*VLOOKUP("Materials ",Escalators!$A$22:$P$24,14,0) -> 0 | I164: =I67*VLOOKUP("Contracts",Escalators!$A$22:$P$24,14,0) -> 0 | J164: =J67*VLOOKUP("Labour",Escalators!$A$22:$P$24,14,0) -> 0 | K164: =K67*VLOOKUP("Materials ",Escalators!$A$22:$P$24,15,0) -> 0 | L164: =L67*VLOOKUP("Contracts",Escalators!$A$22:$P$24,15,0) -> 0 | M164: =M67*VLOOKUP("Labour",Escalators!$A$22:$P$24,15,0) -> 0 | N164: =N67*VLOOKUP("Materials ",Escalators!$A$22:$P$24,16,0) -> 0 | O164: =O67*VLOOKUP("Contracts",Escalators!$A$22:$P$24,16,0) -> 0 | P164: =P67*VLOOKUP("Labour",Escalators!$A$22:$P$24,16,0) -> 0
A165: Infrastructure - SAN Storage Growth | B165: =B68*VLOOKUP("Materials ",Escalators!$A$22:$P$24,12,0) -> 0 | C165: =C68*VLOOKUP("Contracts",Escalators!$A$22:$P$24,12,0) -> 0 | D165: =D68*VLOOKUP("Labour",Escalators!$A$22:$P$24,12,0) -> 0 | E165: =E68*VLOOKUP("Materials ",Escalators!$A$22:$P$24,13,0) -> 0 | F165: =F68*VLOOKUP("Contracts",Escalators!$A$22:$P$24,13,0) -> 0 | G165: =G68*VLOOKUP("Labour",Escalators!$A$22:$P$24,13,0) -> 0 | H165: =H68*VLOOKUP("Materials ",Escalators!$A$22:$P$24,14,0) -> 0 | I165: =I68*VLOOKUP("Contracts",Escalators!$A$22:$P$24,14,0) -> 0 | J165: =J68*VLOOKUP("Labour",Escalators!$A$22:$P$24,14,0) -> 0 | K165: =K68*VLOOKUP("Materials ",Escalators!$A$22:$P$24,15,0) -> 0 | L165: =L68*VLOOKUP("Contracts",Escalators!$A$22:$P$24,15,0) -> 0 | M165: =M68*VLOOKUP("Labour",Escalators!$A$22:$P$24,15,0) -> 0 | N165: =N68*VLOOKUP("Materials ",Escalators!$A$22:$P$24,16,0) -> 0 | O165: =O68*VLOOKUP("Contracts",Escalators!$A$22:$P$24,16,0) -> 0 | P165: =P68*VLOOKUP("Labour",Escalators!$A$22:$P$24,16,0) -> 0
A166: Infrastructure - Server Refresh | B166: =B69*VLOOKUP("Materials ",Escalators!$A$22:$P$24,12,0) -> 0 | C166: =C69*VLOOKUP("Contracts",Escalators!$A$22:$P$24,12,0) -> 0 | D166: =D69*VLOOKUP("Labour",Escalators!$A$22:$P$24,12,0) -> 0 | E166: =E69*VLOOKUP("Materials ",Escalators!$A$22:$P$24,13,0) -> 0 | F166: =F69*VLOOKUP("Contracts",Escalators!$A$22:$P$24,13,0) -> 0 | G166: =G69*VLOOKUP("Labour",Escalators!$A$22:$P$24,13,0) -> 0 | H166: =H69*VLOOKUP("Materials ",Escalators!$A$22:$P$24,14,0) -> 0 | I166: =I69*VLOOKUP("Contracts",Escalators!$A$22:$P$24,14,0) -> 0 | J166: =J69*VLOOKUP("Labour",Escalators!$A$22:$P$24,14,0) -> 0 | K166: =K69*VLOOKUP("Materials ",Escalators!$A$22:$P$24,15,0) -> 0 | L166: =L69*VLOOKUP("Contracts",Escalators!$A$22:$P$24,15,0) -> 0 | M166: =M69*VLOOKUP("Labour",Escalators!$A$22:$P$24,15,0) -> 0 | N166: =N69*VLOOKUP("Materials ",Escalators!$A$22:$P$24,16,0) -> 0 | O166: =O69*VLOOKUP("Contracts",Escalators!$A$22:$P$24,16,0) -> 0 | P166: =P69*VLOOKUP("Labour",Escalators!$A$22:$P$24,16,0) -> 0
A167: Infrastructure - Storage Infrastructure Refresh | B167: =B70*VLOOKUP("Materials ",Escalators!$A$22:$P$24,12,0) -> 0 | C167: =C70*VLOOKUP("Contracts",Escalators!$A$22:$P$24,12,0) -> 0 | D167: =D70*VLOOKUP("Labour",Escalators!$A$22:$P$24,12,0) -> 0 | E167: =E70*VLOOKUP("Materials ",Escalators!$A$22:$P$24,13,0) -> 0 | F167: =F70*VLOOKUP("Contracts",Escalators!$A$22:$P$24,13,0) -> 0 | G167: =G70*VLOOKUP("Labour",Escalators!$A$22:$P$24,13,0) -> 0 | H167: =H70*VLOOKUP("Materials ",Escalators!$A$22:$P$24,14,0) -> 0 | I167: =I70*VLOOKUP("Contracts",Escalators!$A$22:$P$24,14,0) -> 0 | J167: =J70*VLOOKUP("Labour",Escalators!$A$22:$P$24,14,0) -> 0 | K167: =K70*VLOOKUP("Materials ",Escalators!$A$22:$P$24,15,0) -> 0 | L167: =L70*VLOOKUP("Contracts",Escalators!$A$22:$P$24,15,0) -> 0 | M167: =M70*VLOOKUP("Labour",Escalators!$A$22:$P$24,15,0) -> 0 | N167: =N70*VLOOKUP("Materials ",Escalators!$A$22:$P$24,16,0) -> 0 | O167: =O70*VLOOKUP("Contracts",Escalators!$A$22:$P$24,16,0) -> 0 | P167: =P70*VLOOKUP("Labour",Escalators!$A$22:$P$24,16,0) -> 0
A168: Security | B168: =B71*VLOOKUP("Materials ",Escalators!$A$22:$P$24,12,0) -> 0 | C168: =C71*VLOOKUP("Contracts",Escalators!$A$22:$P$24,12,0) -> 0 | D168: =D71*VLOOKUP("Labour",Escalators!$A$22:$P$24,12,0) -> 0 | E168: =E71*VLOOKUP("Materials ",Escalators!$A$22:$P$24,13,0) -> 0 | F168: =F71*VLOOKUP("Contracts",Escalators!$A$22:$P$24,13,0) -> 0 | G168: =G71*VLOOKUP("Labour",Escalators!$A$22:$P$24,13,0) -> 0 | H168: =H71*VLOOKUP("Materials ",Escalators!$A$22:$P$24,14,0) -> 0 | I168: =I71*VLOOKUP("Contracts",Escalators!$A$22:$P$24,14,0) -> 0 | J168: =J71*VLOOKUP("Labour",Escalators!$A$22:$P$24,14,0) -> 0 | K168: =K71*VLOOKUP("Materials ",Escalators!$A$22:$P$24,15,0) -> 0 | L168: =L71*VLOOKUP("Contracts",Escalators!$A$22:$P$24,15,0) -> 0 | M168: =M71*VLOOKUP("Labour",Escalators!$A$22:$P$24,15,0) -> 0 | N168: =N71*VLOOKUP("Materials ",Escalators!$A$22:$P$24,16,0) -> 0 | O168: =O71*VLOOKUP("Contracts",Escalators!$A$22:$P$24,16,0) -> 0 | P168: =P71*VLOOKUP("Labour",Escalators!$A$22:$P$24,16,0) -> 0
A169: Smarter Networks - Asset Management Data Analytics | B169: =B72*VLOOKUP("Materials ",Escalators!$A$22:$P$24,12,0) -> 0 | C169: =C72*VLOOKUP("Contracts",Escalators!$A$22:$P$24,12,0) -> 0 | D169: =D72*VLOOKUP("Labour",Escalators!$A$22:$P$24,12,0) -> 0 | E169: =E72*VLOOKUP("Materials ",Escalators!$A$22:$P$24,13,0) -> 0 | F169: =F72*VLOOKUP("Contracts",Escalators!$A$22:$P$24,13,0) -> 0 | G169: =G72*VLOOKUP("Labour",Escalators!$A$22:$P$24,13,0) -> 0 | H169: =H72*VLOOKUP("Materials ",Escalators!$A$22:$P$24,14,0) -> 0 | I169: =I72*VLOOKUP("Contracts",Escalators!$A$22:$P$24,14,0) -> 0 | J169: =J72*VLOOKUP("Labour",Escalators!$A$22:$P$24,14,0) -> 0 | K169: =K72*VLOOKUP("Materials ",Escalators!$A$22:$P$24,15,0) -> 0 | L169: =L72*VLOOKUP("Contracts",Escalators!$A$22:$P$24,15,0) -> 0 | M169: =M72*VLOOKUP("Labour",Escalators!$A$22:$P$24,15,0) -> 0 | N169: =N72*VLOOKUP("Materials ",Escalators!$A$22:$P$24,16,0) -> 0 | O169: =O72*VLOOKUP("Contracts",Escalators!$A$22:$P$24,16,0) -> 0 | P169: =P72*VLOOKUP("Labour",Escalators!$A$22:$P$24,16,0) -> 0
A170: Smarter Networks - DMS / OMS Integration | B170: =B73*VLOOKUP("Materials ",Escalators!$A$22:$P$24,12,0) -> 0 | C170: =C73*VLOOKUP("Contracts",Escalators!$A$22:$P$24,12,0) -> 0 | D170: =D73*VLOOKUP("Labour",Escalators!$A$22:$P$24,12,0) -> 0 | E170: =E73*VLOOKUP("Materials ",Escalators!$A$22:$P$24,13,0) -> 0 | F170: =F73*VLOOKUP("Contracts",Escalators!$A$22:$P$24,13,0) -> 0 | G170: =G73*VLOOKUP("Labour",Escalators!$A$22:$P$24,13,0) -> 0 | H170: =H73*VLOOKUP("Materials ",Escalators!$A$22:$P$24,14,0) -> 0 | I170: =I73*VLOOKUP("Contracts",Escalators!$A$22:$P$24,14,0) -> 0 | J170: =J73*VLOOKUP("Labour",Escalators!$A$22:$P$24,14,0) -> 0 | K170: =K73*VLOOKUP("Materials ",Escalators!$A$22:$P$24,15,0) -> 0 | L170: =L73*VLOOKUP("Contracts",Escalators!$A$22:$P$24,15,0) -> 0 | M170: =M73*VLOOKUP("Labour",Escalators!$A$22:$P$24,15,0) -> 0 | N170: =N73*VLOOKUP("Materials ",Escalators!$A$22:$P$24,16,0) -> 0 | O170: =O73*VLOOKUP("Contracts",Escalators!$A$22:$P$24,16,0) -> 0 | P170: =P73*VLOOKUP("Labour",Escalators!$A$22:$P$24,16,0) -> 0
A171: Smarter Networks - DMS Low Voltage Modelling | B171: =B74*VLOOKUP("Materials ",Escalators!$A$22:$P$24,12,0) -> 0 | C171: =C74*VLOOKUP("Contracts",Escalators!$A$22:$P$24,12,0) -> 0 | D171: =D74*VLOOKUP("Labour",Escalators!$A$22:$P$24,12,0) -> 0 | E171: =E74*VLOOKUP("Materials ",Escalators!$A$22:$P$24,13,0) -> 0 | F171: =F74*VLOOKUP("Contracts",Escalators!$A$22:$P$24,13,0) -> 0 | G171: =G74*VLOOKUP("Labour",Escalators!$A$22:$P$24,13,0) -> 0 | H171: =H74*VLOOKUP("Materials ",Escalators!$A$22:$P$24,14,0) -> 0 | I171: =I74*VLOOKUP("Contracts",Escalators!$A$22:$P$24,14,0) -> 0 | J171: =J74*VLOOKUP("Labour",Escalators!$A$22:$P$24,14,0) -> 0 | K171: =K74*VLOOKUP("Materials ",Escalators!$A$22:$P$24,15,0) -> 0 | L171: =L74*VLOOKUP("Contracts",Escalators!$A$22:$P$24,15,0) -> 0 | M171: =M74*VLOOKUP("Labour",Escalators!$A$22:$P$24,15,0) -> 0 | N171: =N74*VLOOKUP("Materials ",Escalators!$A$22:$P$24,16,0) -> 0 | O171: =O74*VLOOKUP("Contracts",Escalators!$A$22:$P$24,16,0) -> 0 | P171: =P74*VLOOKUP("Labour",Escalators!$A$22:$P$24,16,0) -> 0
A172: Smarter Networks - DMS Mobility Switching Integration | B172: =B75*VLOOKUP("Materials ",Escalators!$A$22:$P$24,12,0) -> 0 | C172: =C75*VLOOKUP("Contracts",Escalators!$A$22:$P$24,12,0) -> 0 | D172: =D75*VLOOKUP("Labour",Escalators!$A$22:$P$24,12,0) -> 0 | E172: =E75*VLOOKUP("Materials ",Escalators!$A$22:$P$24,13,0) -> 0 | F172: =F75*VLOOKUP("Contracts",Escalators!$A$22:$P$24,13,0) -> 0 | G172: =G75*VLOOKUP("Labour",Escalators!$A$22:$P$24,13,0) -> 0 | H172: =H75*VLOOKUP("Materials ",Escalators!$A$22:$P$24,14,0) -> 0 | I172: =I75*VLOOKUP("Contracts",Escalators!$A$22:$P$24,14,0) -> 0 | J172: =J75*VLOOKUP("Labour",Escalators!$A$22:$P$24,14,0) -> 0 | K172: =K75*VLOOKUP("Materials ",Escalators!$A$22:$P$24,15,0) -> 0 | L172: =L75*VLOOKUP("Contracts",Escalators!$A$22:$P$24,15,0) -> 0 | M172: =M75*VLOOKUP("Labour",Escalators!$A$22:$P$24,15,0) -> 0 | N172: =N75*VLOOKUP("Materials ",Escalators!$A$22:$P$24,16,0) -> 0 | O172: =O75*VLOOKUP("Contracts",Escalators!$A$22:$P$24,16,0) -> 0 | P172: =P75*VLOOKUP("Labour",Escalators!$A$22:$P$24,16,0) -> 0
A173: Smarter Networks - Lidar Data Management and Application | B173: =B76*VLOOKUP("Materials ",Escalators!$A$22:$P$24,12,0) -> 0 | C173: =C76*VLOOKUP("Contracts",Escalators!$A$22:$P$24,12,0) -> 0 | D173: =D76*VLOOKUP("Labour",Escalators!$A$22:$P$24,12,0) -> 0 | E173: =E76*VLOOKUP("Materials ",Escalators!$A$22:$P$24,13,0) -> 0 | F173: =F76*VLOOKUP("Contracts",Escalators!$A$22:$P$24,13,0) -> 0 | G173: =G76*VLOOKUP("Labour",Escalators!$A$22:$P$24,13,0) -> 0 | H173: =H76*VLOOKUP("Materials ",Escalators!$A$22:$P$24,14,0) -> 0 | I173: =I76*VLOOKUP("Contracts",Escalators!$A$22:$P$24,14,0) -> 0 | J173: =J76*VLOOKUP("Labour",Escalators!$A$22:$P$24,14,0) -> 0 | K173: =K76*VLOOKUP("Materials ",Escalators!$A$22:$P$24,15,0) -> 0 | L173: =L76*VLOOKUP("Contracts",Escalators!$A$22:$P$24,15,0) -> 0 | M173: =M76*VLOOKUP("Labour",Escalators!$A$22:$P$24,15,0) -> 0 | N173: =N76*VLOOKUP("Materials ",Escalators!$A$22:$P$24,16,0) -> 0 | O173: =O76*VLOOKUP("Contracts",Escalators!$A$22:$P$24,16,0) -> 0 | P173: =P76*VLOOKUP("Labour",Escalators!$A$22:$P$24,16,0) -> 0
A174: Smarter Networks - Outage Notification System Extension | B174: =B77*VLOOKUP("Materials ",Escalators!$A$22:$P$24,12,0) -> 0 | C174: =C77*VLOOKUP("Contracts",Escalators!$A$22:$P$24,12,0) -> 0 | D174: =D77*VLOOKUP("Labour",Escalators!$A$22:$P$24,12,0) -> 0 | E174: =E77*VLOOKUP("Materials ",Escalators!$A$22:$P$24,13,0) -> 0 | F174: =F77*VLOOKUP("Contracts",Escalators!$A$22:$P$24,13,0) -> 0 | G174: =G77*VLOOKUP("Labour",Escalators!$A$22:$P$24,13,0) -> 0 | H174: =H77*VLOOKUP("Materials ",Escalators!$A$22:$P$24,14,0) -> 0 | I174: =I77*VLOOKUP("Contracts",Escalators!$A$22:$P$24,14,0) -> 0 | J174: =J77*VLOOKUP("Labour",Escalators!$A$22:$P$24,14,0) -> 0 | K174: =K77*VLOOKUP("Materials ",Escalators!$A$22:$P$24,15,0) -> 0 | L174: =L77*VLOOKUP("Contracts",Escalators!$A$22:$P$24,15,0) -> 0 | M174: =M77*VLOOKUP("Labour",Escalators!$A$22:$P$24,15,0) -> 0 | N174: =N77*VLOOKUP("Materials ",Escalators!$A$22:$P$24,16,0) -> 0 | O174: =O77*VLOOKUP("Contracts",Escalators!$A$22:$P$24,16,0) -> 0 | P174: =P77*VLOOKUP("Labour",Escalators!$A$22:$P$24,16,0) -> 0
A175: Smarter Networks - Remote Diagnostics / Asset Condition Alerts | B175: =B78*VLOOKUP("Materials ",Escalators!$A$22:$P$24,12,0) -> 0 | C175: =C78*VLOOKUP("Contracts",Escalators!$A$22:$P$24,12,0) -> 0 | D175: =D78*VLOOKUP("Labour",Escalators!$A$22:$P$24,12,0) -> 0 | E175: =E78*VLOOKUP("Materials ",Escalators!$A$22:$P$24,13,0) -> 0 | F175: =F78*VLOOKUP("Contracts",Escalators!$A$22:$P$24,13,0) -> 0 | G175: =G78*VLOOKUP("Labour",Escalators!$A$22:$P$24,13,0) -> 0 | H175: =H78*VLOOKUP("Materials ",Escalators!$A$22:$P$24,14,0) -> 0 | I175: =I78*VLOOKUP("Contracts",Escalators!$A$22:$P$24,14,0) -> 0 | J175: =J78*VLOOKUP("Labour",Escalators!$A$22:$P$24,14,0) -> 0 | K175: =K78*VLOOKUP("Materials ",Escalators!$A$22:$P$24,15,0) -> 0 | L175: =L78*VLOOKUP("Contracts",Escalators!$A$22:$P$24,15,0) -> 0 | M175: =M78*VLOOKUP("Labour",Escalators!$A$22:$P$24,15,0) -> 0 | N175: =N78*VLOOKUP("Materials ",Escalators!$A$22:$P$24,16,0) -> 0 | O175: =O78*VLOOKUP("Contracts",Escalators!$A$22:$P$24,16,0) -> 0 | P175: =P78*VLOOKUP("Labour",Escalators!$A$22:$P$24,16,0) -> 0
A176: Smarter Networks - Smart Network Advanced Analytics | B176: =B79*VLOOKUP("Materials ",Escalators!$A$22:$P$24,12,0) -> 0 | C176: =C79*VLOOKUP("Contracts",Escalators!$A$22:$P$24,12,0) -> 0 | D176: =D79*VLOOKUP("Labour",Escalators!$A$22:$P$24,12,0) -> 0 | E176: =E79*VLOOKUP("Materials ",Escalators!$A$22:$P$24,13,0) -> 0 | F176: =F79*VLOOKUP("Contracts",Escalators!$A$22:$P$24,13,0) -> 0 | G176: =G79*VLOOKUP("Labour",Escalators!$A$22:$P$24,13,0) -> 0 | H176: =H79*VLOOKUP("Materials ",Escalators!$A$22:$P$24,14,0) -> 0 | I176: =I79*VLOOKUP("Contracts",Escalators!$A$22:$P$24,14,0) -> 0 | J176: =J79*VLOOKUP("Labour",Escalators!$A$22:$P$24,14,0) -> 0 | K176: =K79*VLOOKUP("Materials ",Escalators!$A$22:$P$24,15,0) -> 0 | L176: =L79*VLOOKUP("Contracts",Escalators!$A$22:$P$24,15,0) -> 0 | M176: =M79*VLOOKUP("Labour",Escalators!$A$22:$P$24,15,0) -> 0 | N176: =N79*VLOOKUP("Materials ",Escalators!$A$22:$P$24,16,0) -> 0 | O176: =O79*VLOOKUP("Contracts",Escalators!$A$22:$P$24,16,0) -> 0 | P176: =P79*VLOOKUP("Labour",Escalators!$A$22:$P$24,16,0) -> 0
A177: Smarter Networks - Smart Network Demand Management | B177: =B80*VLOOKUP("Materials ",Escalators!$A$22:$P$24,12,0) -> 0 | C177: =C80*VLOOKUP("Contracts",Escalators!$A$22:$P$24,12,0) -> 0 | D177: =D80*VLOOKUP("Labour",Escalators!$A$22:$P$24,12,0) -> 0 | E177: =E80*VLOOKUP("Materials ",Escalators!$A$22:$P$24,13,0) -> 0 | F177: =F80*VLOOKUP("Contracts",Escalators!$A$22:$P$24,13,0) -> 0 | G177: =G80*VLOOKUP("Labour",Escalators!$A$22:$P$24,13,0) -> 0 | H177: =H80*VLOOKUP("Materials ",Escalators!$A$22:$P$24,14,0) -> 0 | I177: =I80*VLOOKUP("Contracts",Escalators!$A$22:$P$24,14,0) -> 0 | J177: =J80*VLOOKUP("Labour",Escalators!$A$22:$P$24,14,0) -> 0 | K177: =K80*VLOOKUP("Materials ",Escalators!$A$22:$P$24,15,0) -> 0 | L177: =L80*VLOOKUP("Contracts",Escalators!$A$22:$P$24,15,0) -> 0 | M177: =M80*VLOOKUP("Labour",Escalators!$A$22:$P$24,15,0) -> 0 | N177: =N80*VLOOKUP("Materials ",Escalators!$A$22:$P$24,16,0) -> 0 | O177: =O80*VLOOKUP("Contracts",Escalators!$A$22:$P$24,16,0) -> 0 | P177: =P80*VLOOKUP("Labour",Escalators!$A$22:$P$24,16,0) -> 0
A178: Smarter Networks - Storage Integration to Network Management | B178: =B81*VLOOKUP("Materials ",Escalators!$A$22:$P$24,12,0) -> 0 | C178: =C81*VLOOKUP("Contracts",Escalators!$A$22:$P$24,12,0) -> 0 | D178: =D81*VLOOKUP("Labour",Escalators!$A$22:$P$24,12,0) -> 0 | E178: =E81*VLOOKUP("Materials ",Escalators!$A$22:$P$24,13,0) -> 0 | F178: =F81*VLOOKUP("Contracts",Escalators!$A$22:$P$24,13,0) -> 0 | G178: =G81*VLOOKUP("Labour",Escalators!$A$22:$P$24,13,0) -> 0 | H178: =H81*VLOOKUP("Materials ",Escalators!$A$22:$P$24,14,0) -> 0 | I178: =I81*VLOOKUP("Contracts",Escalators!$A$22:$P$24,14,0) -> 0 | J178: =J81*VLOOKUP("Labour",Escalators!$A$22:$P$24,14,0) -> 0 | K178: =K81*VLOOKUP("Materials ",Escalators!$A$22:$P$24,15,0) -> 0 | L178: =L81*VLOOKUP("Contracts",Escalators!$A$22:$P$24,15,0) -> 0 | M178: =M81*VLOOKUP("Labour",Escalators!$A$22:$P$24,15,0) -> 0 | N178: =N81*VLOOKUP("Materials ",Escalators!$A$22:$P$24,16,0) -> 0 | O178: =O81*VLOOKUP("Contracts",Escalators!$A$22:$P$24,16,0) -> 0 | P178: =P81*VLOOKUP("Labour",Escalators!$A$22:$P$24,16,0) -> 0
B179: =SUM(B152:B178) -> 0 | C179: =SUM(C152:C178) -> 3.808944052 | D179: =SUM(D152:D178) -> 3.193803695 | E179: =SUM(E152:E178) -> 0 | F179: =SUM(F152:F178) -> 11.73106918 | G179: =SUM(G152:G178) -> 3.865505252 | H179: =SUM(H152:H178) -> 0 | I179: =SUM(I152:I178) -> 17.4341869 | J179: =SUM(J152:J178) -> 7.444938886 | K179: =SUM(K152:K178) -> 0 | L179: =SUM(L152:L178) -> 14.4174815 | M179: =SUM(M152:M178) -> 5.991408111 | N179: =SUM(N152:N178) -> 0 | O179: =SUM(O152:O178) -> 59.32829193 | P179: =SUM(P152:P178) -> 18.58555505
A181: AMI | B181: =SUM(B152) -> 0 | C181: 3.808944052 | D181: 3.193803695 | E181: 0 | F181: 11.73106918 | G181: 3.865505252 | H181: 0 | I181: 17.4341869 | J181: 7.444938886 | K181: 0 | L181: 14.4174815 | M181: 5.991408111 | N181: 0 | O181: 59.32829193 | P181: 18.58555505
A182: Compliance | B182: =SUM(B153:B154) -> 0 | C182: 0 | D182: 0 | E182: 0 | F182: 0 | G182: 0 | H182: 0 | I182: 0 | J182: 0 | K182: 0 | L182: 0 | M182: 0 | N182: 0 | O182: 0 | P182: 0
A183: Currency | B183: =SUM(B155:B158) -> 0 | C183: 0 | D183: 0 | E183: 0 | F183: 0 | G183: 0 | H183: 0 | I183: 0 | J183: 0 | K183: 0 | L183: 0 | M183: 0 | N183: 0 | O183: 0 | P183: 0
A184: Customer Engagement | B184: =SUM(B159:B160) -> 0 | C184: 0 | D184: 0 | E184: 0 | F184: 0 | G184: 0 | H184: 0 | I184: 0 | J184: 0 | K184: 0 | L184: 0 | M184: 0 | N184: 0 | O184: 0 | P184: 0
A185: Device Replacement | B185: =SUM(B161) -> 0 | C185: 0 | D185: 0 | E185: 0 | F185: 0 | G185: 0 | H185: 0 | I185: 0 | J185: 0 | K185: 0 | L185: 0 | M185: 0 | N185: 0 | O185: 0 | P185: 0
A186: Infrastructure | B186: =SUM(B162:B167) -> 0 | C186: 0 | D186: 0 | E186: 0 | F186: 0 | G186: 0 | H186: 0 | I186: 0 | J186: 0 | K186: 0 | L186: 0 | M186: 0 | N186: 0 | O186: 0 | P186: 0
A187: Security | B187: =SUM(B168) -> 0 | C187: 0 | D187: 0 | E187: 0 | F187: 0 | G187: 0 | H187: 0 | I187: 0 | J187: 0 | K187: 0 | L187: 0 | M187: 0 | N187: 0 | O187: 0 | P187: 0
A188: Smarter Networks | B188: =SUM(B169:B178) -> 0 | C188: 0 | D188: 0 | E188: 0 | F188: 0 | G188: 0 | H188: 0 | I188: 0 | J188: 0 | K188: 0 | L188: 0 | M188: 0 | N188: 0 | O188: 0 | P188: 0
B189: =SUM(B181:B188) -> 0 | C189: =SUM(C181:C188) -> 3.808944052 | D189: =SUM(D181:D188) -> 3.193803695 | E189: =SUM(E181:E188) -> 0 | F189: =SUM(F181:F188) -> 11.73106918 | G189: =SUM(G181:G188) -> 3.865505252 | H189: =SUM(H181:H188) -> 0 | I189: =SUM(I181:I188) -> 17.4341869 | J189: =SUM(J181:J188) -> 7.444938886 | K189: =SUM(K181:K188) -> 0 | L189: =SUM(L181:L188) -> 14.4174815 | M189: =SUM(M181:M188) -> 5.991408111 | N189: =SUM(N181:N188) -> 0 | O189: =SUM(O181:O188) -> 59.32829193 | P189: =SUM(P181:P188) -> 18.58555505
A192: Recurrent | B192: =B95*VLOOKUP("Materials ",Escalators!$A$22:$P$24,12,0) -> 0 | C192: =C95*VLOOKUP("Contracts",Escalators!$A$22:$P$24,12,0) -> 3.808944052 | D192: =D95*VLOOKUP("Labour",Escalators!$A$22:$P$24,12,0) -> 3.193803695 | E192: =E95*VLOOKUP("Materials ",Escalators!$A$22:$P$24,13,0) -> 0 | F192: =F95*VLOOKUP("Contracts",Escalators!$A$22:$P$24,13,0) -> 11.73106918 | G192: =G95*VLOOKUP("Labour",Escalators!$A$22:$P$24,13,0) -> 3.865505252 | H192: =H95*VLOOKUP("Materials ",Escalators!$A$22:$P$24,14,0) -> 0 | I192: =I95*VLOOKUP("Contracts",Escalators!$A$22:$P$24,14,0) -> 17.4341869 | J192: =J95*VLOOKUP("Labour",Escalators!$A$22:$P$24,14,0) -> 7.444938886 | K192: =K95*VLOOKUP("Materials ",Escalators!$A$22:$P$24,15,0) -> 0 | L192: =L95*VLOOKUP("Contracts",Escalators!$A$22:$P$24,15,0) -> 14.4174815 | M192: =M95*VLOOKUP("Labour",Escalators!$A$22:$P$24,15,0) -> 5.991408111 | N192: =N95*VLOOKUP("Materials ",Escalators!$A$22:$P$24,16,0) -> 0 | O192: =O95*VLOOKUP("Contracts",Escalators!$A$22:$P$24,16,0) -> 59.32829193 | P192: =P95*VLOOKUP("Labour",Escalators!$A$22:$P$24,16,0) -> 18.58555505
A193: Non-Recurrent | B193: =B96*VLOOKUP("Materials ",Escalators!$A$22:$P$24,12,0) -> 0 | C193: =C96*VLOOKUP("Contracts",Escalators!$A$22:$P$24,12,0) -> 0 | D193: =D96*VLOOKUP("Labour",Escalators!$A$22:$P$24,12,0) -> 0 | E193: =E96*VLOOKUP("Materials ",Escalators!$A$22:$P$24,13,0) -> 0 | F193: =F96*VLOOKUP("Contracts",Escalators!$A$22:$P$24,13,0) -> 0 | G193: =G96*VLOOKUP("Labour",Escalators!$A$22:$P$24,13,0) -> 0 | H193: =H96*VLOOKUP("Materials ",Escalators!$A$22:$P$24,14,0) -> 0 | I193: =I96*VLOOKUP("Contracts",Escalators!$A$22:$P$24,14,0) -> 0 | J193: =J96*VLOOKUP("Labour",Escalators!$A$22:$P$24,14,0) -> 0 | K193: =K96*VLOOKUP("Materials ",Escalators!$A$22:$P$24,15,0) -> 0 | L193: =L96*VLOOKUP("Contracts",Escalators!$A$22:$P$24,15,0) -> 0 | M193: =M96*VLOOKUP("Labour",Escalators!$A$22:$P$24,15,0) -> 0 | N193: =N96*VLOOKUP("Materials ",Escalators!$A$22:$P$24,16,0) -> 0 | O193: =O96*VLOOKUP("Contracts",Escalators!$A$22:$P$24,16,0) -> 0 | P193: =P96*VLOOKUP("Labour",Escalators!$A$22:$P$24,16,0) -> 0
A194: Device Replacement | B194: =B97*VLOOKUP("Materials ",Escalators!$A$22:$P$24,12,0) -> 0 | C194: =C97*VLOOKUP("Contracts",Escalators!$A$22:$P$24,12,0) -> 0 | D194: =D97*VLOOKUP("Labour",Escalators!$A$22:$P$24,12,0) -> 0 | E194: =E97*VLOOKUP("Materials ",Escalators!$A$22:$P$24,13,0) -> 0 | F194: =F97*VLOOKUP("Contracts",Escalators!$A$22:$P$24,13,0) -> 0 | G194: =G97*VLOOKUP("Labour",Escalators!$A$22:$P$24,13,0) -> 0 | H194: =H97*VLOOKUP("Materials ",Escalators!$A$22:$P$24,14,0) -> 0 | I194: =I97*VLOOKUP("Contracts",Escalators!$A$22:$P$24,14,0) -> 0 | J194: =J97*VLOOKUP("Labour",Escalators!$A$22:$P$24,14,0) -> 0 | K194: =K97*VLOOKUP("Materials ",Escalators!$A$22:$P$24,15,0) -> 0 | L194: =L97*VLOOKUP("Contracts",Escalators!$A$22:$P$24,15,0) -> 0 | M194: =M97*VLOOKUP("Labour",Escalators!$A$22:$P$24,15,0) -> 0 | N194: =N97*VLOOKUP("Materials ",Escalators!$A$22:$P$24,16,0) -> 0 | O194: =O97*VLOOKUP("Contracts",Escalators!$A$22:$P$24,16,0) -> 0 | P194: =P97*VLOOKUP("Labour",Escalators!$A$22:$P$24,16,0) -> 0
B195: =SUM(B192:B194)-B179 -> 0 | C195: =SUM(C192:C193)-C179 -> 0 | D195: =SUM(D192:D193)-D179 -> 0 | E195: =SUM(E192:E193)-E179 -> 0 | F195: 0 | G195: 0 | H195: 0 | I195: 0 | J195: 0 | K195: 0 | L195: 0 | M195: 0 | N195: 0 | O195: 0 | P195: 0
A197: Forecast - Escalated
A198: IT Category | B198: 2016 PAL SCS Total | E198: 2017 PAL SCS Total | H198: 2018 PAL SCS Total | K198: 2019 PAL SCS Total | N198: 2020 PAL SCS Total
B199: Material | C199: Contract | D199: Labour | E199: Material | F199: Contract | G199: Labour | H199: Material | I199: Contract | J199: Labour | K199: Material | L199: Contract | M199: Labour | N199: Material | O199: Contract | P199: Labour
A200: =A8 -> AMI | B200: =B8+B104 -> 0 | C200: 0 | D200: 0 | E200: 0 | F200: 0 | G200: 0 | H200: 0 | I200: 0 | J200: 0 | K200: 0 | L200: 0 | M200: 0 | N200: 0 | O200: 0 | P200: 0
A201: Compliance | B201: =B9+B105 -> 624.9935382 | C201: 1471.425398 | D201: 614.0287811 | E201: 36.25252542 | F201: 839.204572 | G201: 332.8313581 | H201: 0 | I201: 827.592742 | J201: 316.2213909 | K201: 36.25252542 | L201: 898.743831 | M201: 351.904549 | N201: 0 | O201: 890.4885362 | P201: 335.8085061
A202: Compliance - RIN Reporting | B202: =B10+B106 -> 1944.25 | C202: 2421.363142 | D202: 1431.705702 | E202: 1944.25 | F202: 2013.302373 | G202: 1605.921719 | H202: 420 | I202: 655.0029461 | J202: 871.7733403 | K202: 560 | L202: 2291.288127 | M202: 2077.775984 | N202: 420 | O202: 726.463229 | P202: 797.3876974
A203: Currency | B203: =B11+B107 -> 3218.718096 | C203: 2832.48478 | D203: 1045.644947 | E203: 1409.94326 | F203: 3022.476095 | G203: 1195.142492 | H203: 2662.874464 | I203: 3703.806125 | J203: 1363.898296 | K203: 2400.37221 | L203: 3304.555347 | M203: 1208.998778 | N203: 2004.069622 | O203: 4776.552419 | P203: 1808.145167
A204: Currency - IEE / MTS Upgrade | B204: =B12+B108 -> 0 | C204: 0 | D204: 0 | E204: 0 | F204: 0 | G204: 0 | H204: 0 | I204: 2191.071316 | J204: 855.352806 | K204: 0 | L204: 0 | M204: 0 | N204: 0 | O204: 0 | P204: 0
A205: Currency - Refresh Telephony Solution | B205: =B13+B109 -> 0 | C205: 0 | D205: 0 | E205: 145.0101017 | F205: 105.441896 | G205: 53.83102515 | H205: 652.5454575 | I205: 152.1577303 | J205: 130.563625 | K205: 652.5454575 | L205: 607.4637853 | M205: 291.5000445 | N205: 145.0101017 | O205: 111.8022687 | P205: 56.67463392
A206: Currency - USB Upgrade | B206: =B14+B110 -> 0 | C206: 994.119296 | D206: 316.8561998 | E206: 0 | F206: 0 | G206: 0 | H206: 0 | I206: 0 | J206: 0 | K206: 0 | L206: 588.1178048 | M206: 186.3728797 | N206: 0 | O206: 0 | P206: 0
A207: Customer Engagement | B207: =B15+B111 -> 108.7575763 | C207: 249.6278939 | D207: 103.6138682 | E207: 0 | F207: 37.39074326 | G207: 3.753871298 | H207: 217.5151525 | I207: 191.2268016 | J207: 156.2147237 | K207: 72.50505083 | L207: 812.5311777 | M207: 247.1567871 | N207: 72.50505083 | O207: 196.8349801 | P207: 82.50300266
A208: Customer Engagement - Billing / CRM Implementation | B208: =B16+B112 -> 5811.279824 | C208: 7426.073453 | D208: 2376.587639 | E208: 2642.809103 | F208: 7395.141202 | G208: 1965.171017 | H208: 0 | I208: 0 | J208: 0 | K208: 0 | L208: 0 | M208: 0 | N208: 0 | O208: 0 | P208: 0
A209: Device Replacement | B209: =B17+B113 -> 828.8066862 | C209: 0 | D209: 0 | E209: 595.1968625 | F209: 0 | G209: 0 | H209: 814.0577087 | I209: 0 | J209: 0 | K209: 412.0425786 | L209: 0 | M209: 0 | N209: 444.8547394 | O209: 0 | P209: 0
A210: Infrastructure | B210: =B18+B114 -> 156.3603323 | C210: 79.20744317 | D210: 20.51879117 | E210: 156.3603323 | F210: 78.67012382 | G210: 20.12827593 | H210: 870.06061 | I210: 110.4957265 | J210: 71.75209573 | K210: 145.0101017 | L210: 41.54414648 | M210: 10.86417763 | N210: 156.3603323 | O210: 82.82815964 | P210: 20.84634702
A211: Infrastructure - Data Warehouse Hardware Refresh | B211: =B19+B115 -> 0 | C211: 0 | D211: 0 | E211: 2283.909101 | F211: 198.9187541 | G211: 63.0900486 | H211: 0 | I211: 0 | J211: 0 | K211: 0 | L211: 0 | M211: 0 | N211: 0 | O211: 0 | P211: 0
A212: Infrastructure - Network Infrastructure Refresh | B212: =B20+B116 -> 260.5806875 | C212: 452.3228888 | D212: 97.49982325 | E212: 260.5806875 | F212: 462.0659062 | G212: 99.14208434 | H212: 362.5252542 | I212: 12.31848443 | J212: 22.91153864 | K212: 580.0404067 | L212: 12.52979566 | M212: 35.72374207 | N212: 72.50505083 | O212: 12.74839541 | P212: 57.64584936
A213: Infrastructure - SAN Storage Growth | B213: =B21+B117 -> 85.55595998 | C213: 21.96139829 | D213: 5.916453101 | E213: 533.6371741 | F213: 50.85141083 | G213: 12.03221653 | H213: 540.8876792 | I213: 51.73362829 | J213: 12.23488398 | K213: 197.2137383 | L213: 52.62106675 | M213: 12.44096511 | N213: 203.0141423 | O213: 53.5391146 | P213: 12.65051742
A214: Infrastructure - Server Refresh | B214: =B22+B118 -> 445.9060626 | C214: 65.88419488 | D214: 19.94243557 | E214: 268.2686881 | F214: 39.63418785 | G214: 17.30476085 | H214: 1624.113139 | I214: 216.8247656 | J214: 83.23845226 | K214: 688.7979829 | L214: 56.49026283 | M214: 18.66144767 | N214: 279.1444457 | O214: 52.75177468 | P214: 18.19400258
A215: Infrastructure - Storage Infrastructure Refresh | B215: =B23+B119 -> 0 | C215: 0 | D215: 0 | E215: 837.4333371 | F215: 11.21722298 | G215: 24.06443305 | H215: 2927.753953 | I215: 76.07886513 | J215: 61.10568461 | K215: 0 | L215: 0 | M215: 0 | N215: 0 | O215: 0 | P215: 0
A216: Security | B216: =B24+B120 -> 812.0565693 | C216: 769.1718307 | D216: 182.5953863 | E216: 647.3665253 | F216: 833.8135747 | G216: 170.0944901 | H216: 1237.764796 | I216: 937.4003025 | J216: 217.2476362 | K216: 1177.97344 | L216: 1119.303153 | M216: 252.2638099 | N216: 932.2077964 | O216: 976.3015015 | P216: 219.4441171
A217: Smarter Networks - Asset Management Data Analytics | B217: =B25+B121 -> 354.3479928 | C217: 457.727279 | D217: 301.3454499 | E217: 0 | F217: 512.7738417 | G217: 288.4023013 | H217: 566.9567885 | I217: 692.88283 | J217: 494.5014908 | K217: 566.9567885 | L217: 704.7685394 | M217: 502.8307424 | N217: 0 | O217: 611.0468166 | P217: 407.1752372
A218: Smarter Networks - DMS / OMS Integration | B218: =B26+B122 -> 0 | C218: 0 | D218: 0 | E218: 0 | F218: 294.7177742 | G218: 124.0250425 | H218: 1240.217975 | I218: 1765.670335 | J218: 742.0301576 | K218: 779.5655842 | L218: 1123.079256 | M218: 471.6478913 | N218: 0 | O218: 0 | P218: 0
A219: Smarter Networks - DMS Low Voltage Modelling | B219: =B27+B123 -> 0 | C219: 0 | D219: 0 | E219: 0 | F219: 0 | G219: 0 | H219: 0 | I219: 0 | J219: 0 | K219: 0 | L219: 1004.478214 | M219: 813.5642155 | N219: 0 | O219: 1022.002736 | P219: 830.4738548
... 64 more rows
